Workbook

Sheet HOME
F1: API LNAPL Transmissivity Workbook
F2: Calculation of LNAPL Transmissivity from Baildown Test Data
B4: STEP 1: RESET OUTPUT SUMMARY
G6: STEP 4: LNAPL TRANSMISSIVITY SUMMARY
B11: STEP 2: ENTER DATA & VIEW FIGURES
B12: STEP 3: CHOOSE WELL CONDITIONS | I12: Mean LNAPL Transmissivity (ft2/d)
I13: 2.992245834
I16: Standard Deviation (ft2/d)
I17: 0.4827029355
I20: Coefficient of Variation
I21: 0.1613179405

Sheet Data
A1: Well Designation: | B1: MW16
A2: Date: | B2: 2021-11-09
A4: Ground Surface Elev (ft msl) | B4: 100.5 | C4: Enter These Data | E4: Drawdown
A5: Top of Casing Elev (ft msl) | B5: 100.31 | E5: Adjustment
A6: Well Casing Radius, rc (ft): | B6: 0.083 | C6: re1 | E6: (ft)
A7: Well Radius, rw (ft): | B7: 0.167 | E7: =Figures!C28 -> 0
A8: LNAPL Specific Yield, Sy: | B8: 0.175
A9: LNAPL Density Ratio, rr: | B9: 0.78
A10: Top of Screen (ft bgs): | B10: 30.7
A11: Bottom of Screen (ft bgs): | B11: 40.7
A12: LNAPL Baildown Vol. (gal.): | B12: 0.48
A13: Effective Radius, re3 (ft): | B13: =SQRT(B8*(B7^2-B6^2)+B6^2) -> 0.1027813213 | C13: Calculated Parameters
A14: Effective Radius, re2 (ft): | B14: =SQRT(-Figures!U27*B6^2+(Figures!U27+1)*B13^2) -> 0.09313431162
A15: Initial Casing LNAPL Vol. (gal.): | B15: =PI()*B6^2*(F22-E22)*7.48 -> 0.221782984
A16: Initial Filter LNAPL Vol. (gal.): | B16: =IF(E22<B10,PI()*(B7^2-B6^2)*B8*(F22-B10)*7.48,PI()*(B7^2-B6^2)*B8*(F22-E22)*7.48) -> 0.1183121594
A17: Expected Thickness Recharged from Filter Pack (ft) | B17: =MAX(0,IFERROR(O22*(SUM(B15:B16)-B12)/SUM(B15:B16),O22)) -> 0
C19: Enter Data Here | I19: Water Table | J19: LNAPL | M19: LNAPL | U19: LNAPL | V19: Ave.
I20: Depth | J20: Drawdown | L20: Average | M20: Discharge | N20: sn | O20: bn | P20: re | S20: DTP | T20: DTW | U20: Volume | V20: re
B21: Time (min) | C21: DTP (ft btoc) | D21: DTW (ft btoc) | E21: DTP (ft bgs) | F21: DTW (ft bgs) | I21: (ft) | J21: sn (ft) | L21: Time (min) | M21: Qn (ft3/d) | N21: (ft) | O21: (ft) | P21: (ft) | S21: (ft bgs) | T21: (ft bgs) | U21: (gallons) | V21: (ft)
A22: Initial Fluid Levels: | B22: 0 | C22: 34.93 | D22: 36.3 | E22: =C22+B4-B5 -> 35.12 | F22: =D22+B4-B5 -> 36.49 | I22: =E22+(1-B$9)*(F22-E22) -> 35.4214 | O22: =F22-E22 -> 1.37
A24: Enter Test Data: | B24: 1 | C24: 36.33 | D24: 36.35 | E24: =IF(B24>0,C24+B$4-B$5,NA()) -> 36.52 | F24: =IF(B24>0,D24+B$4-B$5,NA()) -> 36.54 | I24: =E24+(1-B$9)*(F24-E24) -> 36.5244 | J24: =E24-E$22-E$7 -> 1.4 | O24: =F24-E24 -> 0.02 | U24: 0 | V24: =MAX(V25:V82)/(MAX(L25:L82)-L25) -> 0.1027813213
B25: 7 | C25: 35.38 | D25: 35.45 | E25: =IF(B25>0,C25+B$4-B$5,NA()) -> 35.57 | F25: =IF(B25>0,D25+B$4-B$5,NA()) -> 35.64 | I25: =E25+(1-B$9)*(F25-E25) -> 35.5854 | J25: 0.45 | L25: =IF(B25>0,0.5*(B24+B25),0) -> 4 | M25: =IF(B25>0,1440*PI()*P25^2*(E24-E25+F25-F24)/(B25-B24),NA()) -> 0.3982534175 | N25: =0.5*(J24+J25) -> 0.925 | O25: =F25-E25 -> 0.07 | P25: =IF(B25>0,re(B$10,E25,F25,B$6,B$14,B$13), ) -> 0.1027813213 | S25: =(E24+E25)/2 -> 36.045 | T25: =(F24+F25)/2 -> 36.09 | U25: =U24+M25*(B25-B24)*7.48/1440 -> 0.01241223151 | V25: 0
B26: 15 | C26: 35.24 | D26: 35.4 | E26: 35.43 | F26: 35.59 | I26: 35.4652 | J26: 0.31 | L26: =IF(B26>0,0.5*(B25+B26),0) -> 11 | M26: =IF(B26>0,1440*PI()*P26^2*(E25-E26+F26-F25)/(B26-B25),NA()) -> 0.5376421136 | N26: =0.5*(J25+J26) -> 0.38 | O26: =F26-E26 -> 0.16 | P26: =IF(B26>0,re(B$10,E26,F26,B$6,B$14,B$13), ) -> 0.1027813213 | S26: =(E25+E26)/2 -> 35.5 | T26: 35.615 | U26: =U25+M26*(B26-B25)*7.48/1440 -> 0.03475424823 | V26: =IF(P26>0,V25+0.5*(P25+P26)*(L26-L25),0) -> 0.7194692488
B27: 61 | C27: 35.21 | D27: 35.42 | E27: 35.4 | F27: 35.61 | I27: 35.4462 | J27: 0.28 | L27: 38 | M27: 0.05194609794 | N27: 0.295 | O27: 0.21 | P27: =IF(B27>0,re(B$10,E27,F27,B$6,B$14,B$13), ) -> 0.1027813213 | S27: 35.415 | T27: 35.6 | U27: 0.04716647975 | V27: =IF(P27>0,V26+0.5*(P26+P27)*(L27-L26),0) -> 3.494564923
B28: 121 | C28: 35.19 | D28: 35.44 | E28: 35.38 | F28: 35.63 | I28: 35.435 | J28: 0.26 | L28: 91 | M28: 0.0318602734 | N28: 0.27 | O28: 0.25 | P28: =IF(B28>0,re(B$10,E28,F28,B$6,B$14,B$13), ) -> 0.1027813213 | S28: 35.39 | T28: 35.62 | U28: 0.05709626496 | V28: 8.94197495
B29: 301 | C29: 35.17 | D29: 35.48 | E29: 35.36 | F29: 35.67 | I29: 35.4282 | J29: 0.24 | L29: 211 | M29: 0.0159301367 | N29: 0.25 | O29: 0.31 | P29: =IF(B29>0,re(B$10,E29,F29,B$6,B$14,B$13), ) -> 0.1027813213 | S29: 35.37 | T29: 35.65 | U29: 0.07199094277 | V29: 21.2757335
L30: 0 | P30: =IF(B30>0,re(B$10,E30,F30,B$6,B$14,B$13), ) -> 0 | V30: 0
L31: 0 | P31: =IF(B31>0,re(B$10,E31,F31,B$6,B$14,B$13), ) -> 0 | V31: 0
L32: 0 | P32: =IF(B32>0,re(B$10,E32,F32,B$6,B$14,B$13), ) -> 0 | V32: 0
L33: 0 | P33: =IF(B33>0,re(B$10,E33,F33,B$6,B$14,B$13), ) -> 0 | V33: 0
L34: 0 | P34: =IF(B34>0,re(B$10,E34,F34,B$6,B$14,B$13), ) -> 0 | V34: 0
L35: 0 | P35: =IF(B35>0,re(B$10,E35,F35,B$6,B$14,B$13), ) -> 0 | V35: 0
L36: 0 | P36: =IF(B36>0,re(B$10,E36,F36,B$6,B$14,B$13), ) -> 0 | V36: 0
L37: 0 | P37: =IF(B37>0,re(B$10,E37,F37,B$6,B$14,B$13), ) -> 0 | V37: 0
L38: 0 | P38: =IF(B38>0,re(B$10,E38,F38,B$6,B$14,B$13), ) -> 0 | V38: 0
L39: 0 | P39: =IF(B39>0,re(B$10,E39,F39,B$6,B$14,B$13), ) -> 0 | V39: 0
L40: 0 | P40: =IF(B40>0,re(B$10,E40,F40,B$6,B$14,B$13), ) -> 0 | V40: 0
L41: 0 | P41: =IF(B41>0,re(B$10,E41,F41,B$6,B$14,B$13), ) -> 0 | V41: 0
L42: 0 | P42: =IF(B42>0,re(B$10,E42,F42,B$6,B$14,B$13), ) -> 0 | V42: 0
L43: 0 | P43: =IF(B43>0,re(B$10,E43,F43,B$6,B$14,B$13), ) -> 0 | V43: 0
I44: =E44+(1-B$9)*(F44-E44) ->  | L44: 0 | N44: =0.5*(J43+J44) ->  | O44: =F44-E44 ->  | P44: =IF(B44>0,re(B$10,E44,F44,B$6,B$14,B$13), ) -> 0 | V44: 0
L45: 0 | P45: =IF(B45>0,re(B$10,E45,F45,B$6,B$14,B$13), ) -> 0 | V45: 0
I46: =E46+(1-B$9)*(F46-E46) ->  | L46: 0 | N46: =0.5*(J45+J46) ->  | O46: =F46-E46 ->  | P46: =IF(B46>0,re(B$10,E46,F46,B$6,B$14,B$13), ) -> 0 | V46: 0
I47: =E47+(1-B$9)*(F47-E47) ->  | L47: 0 | N47: =0.5*(J46+J47) ->  | O47: =F47-E47 ->  | P47: =IF(B47>0,re(B$10,E47,F47,B$6,B$14,B$13), ) -> 0 | S47: =(E46+E47)/2 ->  | T47: =(F46+F47)/2 ->  | U47: =U46+M47*(B47-B46)*7.48/1440 ->  | V47: 0
L48: 0 | P48: =IF(B48>0,re(B$10,E48,F48,B$6,B$14,B$13), ) -> 0 | V48: 0
L49: 0 | P49: =IF(B49>0,re(B$10,E49,F49,B$6,B$14,B$13), ) -> 0 | V49: 0
L50: 0 | P50: =IF(B50>0,re(B$10,E50,F50,B$6,B$14,B$13), ) -> 0 | V50: 0
L51: 0 | P51: =IF(B51>0,re(B$10,E51,F51,B$6,B$14,B$13), ) -> 0 | V51: 0
L52: 0 | P52: =IF(B52>0,re(B$10,E52,F52,B$6,B$14,B$13), ) -> 0 | V52: 0
L53: 0 | P53: =IF(B53>0,re(B$10,E53,F53,B$6,B$14,B$13), ) -> 0 | V53: 0
L54: 0 | P54: =IF(B54>0,re(B$10,E54,F54,B$6,B$14,B$13), ) -> 0 | V54: 0
L55: 0 | P55: =IF(B55>0,re(B$10,E55,F55,B$6,B$14,B$13), ) -> 0 | V55: 0
J56: =E56-E$22-E$7 ->  | L56: 0 | P56: =IF(B56>0,re(B$10,E56,F56,B$6,B$14,B$13), ) -> 0 | V56: 0
L57: 0 | P57: =IF(B57>0,re(B$10,E57,F57,B$6,B$14,B$13), ) -> 0 | V57: 0
L58: 0 | P58: =IF(B58>0,re(B$10,E58,F58,B$6,B$14,B$13), ) -> 0 | V58: 0
L59: 0 | P59: =IF(B59>0,re(B$10,E59,F59,B$6,B$14,B$13), ) -> 0 | V59: 0
L60: 0 | P60: =IF(B60>0,re(B$10,E60,F60,B$6,B$14,B$13), ) -> 0 | V60: 0
L61: 0 | P61: =IF(B61>0,re(B$10,E61,F61,B$6,B$14,B$13), ) -> 0 | V61: 0
L62: 0 | P62: =IF(B62>0,re(B$10,E62,F62,B$6,B$14,B$13), ) -> 0 | V62: 0
L63: 0 | P63: =IF(B63>0,re(B$10,E63,F63,B$6,B$14,B$13), ) -> 0 | V63: 0
L64: 0 | P64: =IF(B64>0,re(B$10,E64,F64,B$6,B$14,B$13), ) -> 0 | V64: 0
L65: 0 | P65: =IF(B65>0,re(B$10,E65,F65,B$6,B$14,B$13), ) -> 0 | V65: 0
L66: 0 | P66: =IF(B66>0,re(B$10,E66,F66,B$6,B$14,B$13), ) -> 0 | V66: 0
L67: 0 | P67: =IF(B67>0,re(B$10,E67,F67,B$6,B$14,B$13), ) -> 0 | V67: 0
L68: 0 | P68: =IF(B68>0,re(B$10,E68,F68,B$6,B$14,B$13), ) -> 0 | V68: 0
L69: 0 | P69: =IF(B69>0,re(B$10,E69,F69,B$6,B$14,B$13), ) -> 0 | V69: 0
L70: 0 | P70: =IF(B70>0,re(B$10,E70,F70,B$6,B$14,B$13), ) -> 0 | V70: 0
L71: 0 | P71: =IF(B71>0,re(B$10,E71,F71,B$6,B$14,B$13), ) -> 0 | V71: 0
L72: 0 | P72: =IF(B72>0,re(B$10,E72,F72,B$6,B$14,B$13), ) -> 0 | V72: 0
L73: 0 | P73: =IF(B73>0,re(B$10,E73,F73,B$6,B$14,B$13), ) -> 0 | V73: 0
L74: 0 | P74: =IF(B74>0,re(B$10,E74,F74,B$6,B$14,B$13), ) -> 0 | V74: 0
L75: 0 | P75: =IF(B75>0,re(B$10,E75,F75,B$6,B$14,B$13), ) -> 0 | V75: 0
L76: 0 | P76: =IF(B76>0,re(B$10,E76,F76,B$6,B$14,B$13), ) -> 0 | V76: 0
L77: 0 | P77: =IF(B77>0,re(B$10,E77,F77,B$6,B$14,B$13), ) -> 0 | V77: 0
L78: 0 | P78: =IF(B78>0,re(B$10,E78,F78,B$6,B$14,B$13), ) -> 0 | V78: 0
L79: 0 | P79: =IF(B79>0,re(B$10,E79,F79,B$6,B$14,B$13), ) -> 0 | V79: 0
L80: 0 | P80: =IF(B80>0,re(B$10,E80,F80,B$6,B$14,B$13), ) -> 0 | V80: 0
L81: 0 | P81: =IF(B81>0,re(B$10,E81,F81,B$6,B$14,B$13), ) -> 0 | V81: 0
L82: 0 | P82: =IF(B82>0,re(B$10,E82,F82,B$6,B$14,B$13), ) -> 0 | V82: 0
P84: =AVERAGE(P25:P82) -> 0.008860458729

Sheet Figures
D2: Figure 1 | L2: Figure 2
T3: =0.8*MIN(Data!B24:B82) -> 0.8 | U3: =Data!E22 -> 35.12
T4: =MAX(Data!B24:B82) -> 301 | U4: =U3 -> 35.12
T5: =T3 -> 0.8 | U5: =Data!F22 -> 36.49
T6: =T4 -> 301 | U6: =U5 -> 36.49
T8: =T4/4 -> 75.25 | U8: =IF(V8<V9,V8,NA()) -> 34.12 | V8: =IF(Data!B10>Data!E22,Data!B10,Data!E22-1) -> 34.12
T9: =T8 -> 75.25 | U9: =IF(V8<V9,V9,NA()) -> 37.49 | V9: =IF(Data!B11<Data!F22,Data!B11,Data!F22+1) -> 37.49
D21: Figure 3 | L21: Figure 4
B22: Qn (ft3/d) | C22: sn (ft) | T22: bn | U22: sn
B23: 0 | C23: 0.22 | T23: 0.35 | U23: 0
B24: 0.55 | C24: 0.97 | T24: 0 | U24: 0.18
B27: Drawdown Adjust. | T27: J-ratio | U27: =(U23-U24)/(T23-T24) -> -0.5142857143
B28: Dsn (ft) | C28: 0
D41: Figure 5 | L41: Figure 6
D60: Figure 7 | L60: Figure 8
D79: Figure 9 | L79: Figure 10
T86: t (min) | U86: sn (ft)
T87: 12 | U87: 0.115
T88: 12 | U88: 0

Sheet B&R
A1: Generalized Bouwer and Rice (1976)
A2: Well Designation: | C2: =IF(Data!B1 > 0,Data!B1,"") -> MW16
A3: Date: | C3: =IF(Data!B2 > 0,Data!B2,"") -> 2021-11-09 | U3: y = A + B x
X4: B&R Type Curve | AE4: Zfactor
M5: Xi | N5: Yi | O5: X2 | P5: XY | Q5: (y-A-Bx)2 | R5: e | S5: count | T5: s/s0 | U5: SX | V5: =SUM(M6:M64) -> 470 | X5: t (min) | Y5: s/s0 | AA5: Xi | AB5: Yi | AD5: t (min) | AE5: Tn_a (ft2/day) | AF5: Tn_b(ft2/day)
M6: =IF(Data!B24>=D$9,Data!B24-D$9,0) -> 0 | N6: =IF(S6>0,LN(Data!J24),0) -> 0 | O6: =M6^2 -> 0 | P6: =M6*N6 -> 0 | Q6: =IF(M6>0,(N6-V$11-V$12*M6)^2,0) -> 0 | R6: =IF(M6>0,(N6-V$11-V$12*M6)/SQRT(V$14),0) -> 0 | S6: =IF(Data!B24>'B&R'!D$9,1,0) -> 0 | T6: =IF(S6=0,NA(),EXP(N6)/EXP(V$19)) ->  | U6: SY | V6: =SUM(N6:N64) -> -5.218338661 | X6: 0 | Y6: =EXP(-2*E$12*(X6/1440)*(-J$15)/(Data!V$24^2*LN('B&R'!J$12))) -> 1 | AA6: =IF(S6>0,M6,NA()) ->  | AB6: =IF(T6>0,N6,NA()) -> 
B7: Enter early time cut-off for least-squares model fit | J7: Le/re | M7: =IF(Data!B25>=D$9,Data!B25-D$9,0) -> 0 | N7: =IF(S7>0,LN(Data!J25),0) -> 0 | O7: =M7^2 -> 0 | P7: =M7*N7 -> 0 | Q7: =IF(M7>0,(N7-V$11-V$12*M7)^2,0) -> 0 | R7: =IF(M7>0,(N7-V$11-V$12*M7)/SQRT(V$14),0) -> 0 | S7: =IF(Data!B25>'B&R'!D$9,1,0) -> 0 | T7: =IF(S7=0,NA(),EXP(N7)/EXP(V$19)) ->  | U7: SX2 | V7: =SUM(O6:O64) -> 102412 | X7: =X6+1.05*(MAX(M$6:M$64)/30) -> 10.29 | Y7: =EXP(-2*E$12*(X7/1440)*(-J$15)/(Data!V$24^2*LN('B&R'!J$12))) -> 0.9917274308 | AA7: =IF(S7>0,M7,NA()) ->  | AB7: =IF(T7>0,N7,NA()) ->  | AD7: =IF($D$9<Data!B25,(Data!B26+Data!B24)/2,NA()) ->  | AE7: =IF($D$9<Data!B25,LN('B&R'!$J$12)/(2*PI()*Data!N25/Data!M25),NA()) ->  | AF7: =IF($D$9<Data!B25,LN('B&R'!$J$12)/(2*PI()*(Data!N25-Data!N26)/(Data!M25-Data!M26)),NA()) -> 
J8: =IF(Data!E22<Data!B10,(Data!F22-Data!B10)/Data!B13,(Data!F22-Data!E22)/Data!B13) -> 13.32927017 | M8: =IF(Data!B26>=D$9,Data!B26-D$9,0) -> 8 | N8: =IF(S8>0,LN(Data!J26),0) -> -1.171182982 | O8: 64 | P8: -9.369463852 | Q8: 0.002025344338 | R8: 0.9126858589 | S8: =IF(Data!B26>'B&R'!D$9,1,0) -> 1 | T8: 1.039298052 | U8: SXY | V8: =SUM(P6:P64) -> -651.2482148 | X8: =X7+1.05*(MAX(M$6:M$64)/30) -> 20.58 | Y8: =EXP(-2*E$12*(X8/1440)*(-J$15)/(Data!V$24^2*LN('B&R'!J$12))) -> 0.983523297 | AA8: 8 | AB8: -1.171182982 | AD8: =IF($D$9<Data!B26,(Data!B27+Data!B25)/2,NA()) -> 34 | AE8: =IF($D$9<Data!B26,LN('B&R'!$J$12)/(2*PI()*Data!N26/Data!M26),NA()) -> 0.4296741691 | AF8: =IF($D$9<Data!B26,LN('B&R'!$J$12)/(2*PI()*(Data!N26-Data!N27)/(Data!M26-Data!M27)),NA()) -> 1.735302441
C9: Timecut | D9: 7 | E9: <- Enter or change value here | J9: C | M9: =IF(Data!B27>=D$9,Data!B27-D$9,0) -> 54 | N9: =IF(S9>0,LN(Data!J27),0) -> -1.272965676 | O9: 2916 | P9: -68.74014649 | Q9: 0.0003858747654 | R9: -0.3983777513 | S9: =IF(Data!B27>'B&R'!D$9,1,0) -> 1 | T9: 0.9387208207 | U9: N | V9: =SUM(S6:S64) -> 4 | X9: 30.87 | Y9: =EXP(-2*E$12*(X9/1440)*(-J$15)/(Data!V$24^2*LN('B&R'!J$12))) -> 0.9753870325 | AA9: 54 | AB9: -1.272965676 | AD9: =IF($D$9<Data!B27,(Data!B28+Data!B26)/2,NA()) -> 68 | AE9: =IF($D$9<Data!B27,LN('B&R'!$J$12)/(2*PI()*Data!N27/Data!M27),NA()) -> 0.05347619233 | AF9: =IF($D$9<Data!B27,LN('B&R'!$J$12)/(2*PI()*(Data!N27-Data!N28)/(Data!M27-Data!M28)),NA()) -> 0.2439940402
J10: =IF(J8<2000,0.792+0.03993*J8-0.00005743^J8^2+0.00000003858*J8^3-0.000000000009659*J8^4,13.5) -> 1.324328818 | M10: =IF(Data!B28>=D$9,Data!B28-D$9,0) -> 114 | N10: =IF(S10>0,LN(Data!J28),0) -> -1.347073648 | O10: 12996 | P10: -153.5663959 | Q10: 0.002053402555 | R10: -0.9189860852 | S10: =IF(Data!B28>'B&R'!D$9,1,0) -> 1 | T10: 0.8716693335 | U10: D | V10: =V9*V7-V5^2 -> 188748 | X10: 41.16 | Y10: =EXP(-2*E$12*(X10/1440)*(-J$15)/(Data!V$24^2*LN('B&R'!J$12))) -> 0.9673180758 | AA10: 114 | AB10: -1.347073648 | AD10: =IF($D$9<Data!B28,(Data!B29+Data!B27)/2,NA()) -> 181 | AE10: =IF($D$9<Data!B28,LN('B&R'!$J$12)/(2*PI()*Data!N28/Data!M28),NA()) -> 0.03583565086 | AF10: =IF($D$9<Data!B28,LN('B&R'!$J$12)/(2*PI()*(Data!N28-Data!N29)/(Data!M28-Data!M29)),NA()) -> 0.2418906433
J11: R/re | M11: =IF(Data!B29>=D$9,Data!B29-D$9,0) -> 294 | N11: =IF(S11>0,LN(Data!J29),0) -> -1.427116356 | O11: 86436 | P11: -419.5722086 | Q11: 0.0003981762652 | R11: 0.4046779776 | S11: =IF(Data!B29>'B&R'!D$9,1,0) -> 1 | T11: 0.8046178463 | U11: A | V11: =(V7*V6-V5*V8)/V10 -> -1.209728516 | X11: 51.45 | Y11: =EXP(-2*E$12*(X11/1440)*(-J$15)/(Data!V$24^2*LN('B&R'!J$12))) -> 0.9593158701 | AA11: 294 | AB11: -1.427116356 | AD11: =IF($D$9<Data!B29,(Data!B30+Data!B28)/2,NA()) -> 60.5 | AE11: =IF($D$9<Data!B29,LN('B&R'!$J$12)/(2*PI()*Data!N29/Data!M29),NA()) -> 0.01935125147 | AF11: =IF($D$9<Data!B29,LN('B&R'!$J$12)/(2*PI()*(Data!N29-Data!N30)/(Data!M29-Data!M30)),NA()) -> 
B12: Model Results: | D12: Tn (ft2/d) = | E12: =1440*V22*(-V12) -> 0.0227820857 | F12: +/- | G12: =1440*V22*SQRT(V15) -> 0.006405938856 | H12: ft2/d | J12: =EXP(((1.1/LN(J8))+J10/J8)^-1) -> 6.740515896 | M12: =IF(Data!B30>=D$9,Data!B30-D$9,0) -> 0 | N12: =IF(S12>0,LN(Data!J30),0) -> 0 | O12: 0 | P12: 0 | Q12: 0 | R12: 0 | S12: =IF(Data!B30>'B&R'!D$9,1,0) -> 0 | U12: B | V12: =(V9*V8-V5*V6)/V10 -> -0.0008072863737 | X12: 61.74 | Y12: =EXP(-2*E$12*(X12/1440)*(-J$15)/(Data!V$24^2*LN('B&R'!J$12))) -> 0.9513798631 | AD12: =IF($D$9<Data!B30,(Data!B31+Data!B29)/2,NA()) ->  | AE12: =IF($D$9<Data!B30,LN('B&R'!$J$12)/(2*PI()*Data!N30/Data!M30),NA()) ->  | AF12: =IF($D$9<Data!B30,LN('B&R'!$J$12)/(2*PI()*(Data!N30-Data!N31)/(Data!M30-Data!M31)),NA()) -> 
M13: =IF(Data!B31>=D$9,Data!B31-D$9,0) -> 0 | N13: =IF(S13>0,LN(Data!J31),0) -> 0 | O13: =M13^2 -> 0 | P13: =M13*N13 -> 0 | Q13: =IF(M13>0,(N13-V$11-V$12*M13)^2,0) -> 0 | R13: =IF(M13>0,(N13-V$11-V$12*M13)/SQRT(V$14),0) -> 0 | S13: =IF(Data!B31>'B&R'!D$9,1,0) -> 0 | T13: =IF(S13=0,NA(),EXP(N13)/EXP(V$19)) ->  | X13: 72.03 | Y13: =EXP(-2*E$12*(X13/1440)*(-J$15)/(Data!V$24^2*LN('B&R'!J$12))) -> 0.9435095074 | AD13: =IF($D$9<Data!B31,(Data!B32+Data!B30)/2,NA()) ->  | AE13: =IF($D$9<Data!B31,LN('B&R'!$J$12)/(2*PI()*Data!N31/Data!M31),NA()) ->  | AF13: =IF($D$9<Data!B31,LN('B&R'!$J$12)/(2*PI()*(Data!N31-Data!N32)/(Data!M31-Data!M32)),NA()) -> 
J14: J-Ratio | M14: =IF(Data!B32>=D$9,Data!B32-D$9,0) -> 0 | N14: =IF(S14>0,LN(Data!J32),0) -> 0 | O14: 0 | P14: 0 | Q14: 0 | R14: 0 | S14: =IF(Data!B32>'B&R'!D$9,1,0) -> 0 | U14: sy2 | V14: =SUM(Q6:Q64)/(V9-2) -> 0.002431398962 | X14: 82.32 | Y14: =EXP(-2*E$12*(X14/1440)*(-J$15)/(Data!V$24^2*LN('B&R'!J$12))) -> 0.9357042597 | AD14: =IF($D$9<Data!B32,(Data!B33+Data!B31)/2,NA()) ->  | AE14: =IF($D$9<Data!B32,LN('B&R'!$J$12)/(2*PI()*Data!N32/Data!M32),NA()) ->  | AF14: =IF($D$9<Data!B32,LN('B&R'!$J$12)/(2*PI()*(Data!N32-Data!N33)/(Data!M32-Data!M33)),NA()) -> 
J15: =Figures!U27 -> -0.5142857143 | M15: =IF(Data!B33>=D$9,Data!B33-D$9,0) -> 0 | N15: =IF(S15>0,LN(Data!J33),0) -> 0 | O15: =M15^2 -> 0 | P15: =M15*N15 -> 0 | Q15: =IF(M15>0,(N15-V$11-V$12*M15)^2,0) -> 0 | R15: =IF(M15>0,(N15-V$11-V$12*M15)/SQRT(V$14),0) -> 0 | S15: =IF(Data!B33>'B&R'!D$9,1,0) -> 0 | T15: =IF(S15=0,NA(),EXP(N15)/EXP(V$19)) ->  | U15: sB2 | V15: =V9*V14/V10 -> 5.152688159e-08 | X15: 92.61 | Y15: =EXP(-2*E$12*(X15/1440)*(-J$15)/(Data!V$24^2*LN('B&R'!J$12))) -> 0.9279635815 | AD15: =IF($D$9<Data!B33,(Data!B34+Data!B32)/2,NA()) ->  | AE15: =IF($D$9<Data!B33,LN('B&R'!$J$12)/(2*PI()*Data!N33/Data!M33),NA()) ->  | AF15: =IF($D$9<Data!B33,LN('B&R'!$J$12)/(2*PI()*(Data!N33-Data!N34)/(Data!M33-Data!M34)),NA()) -> 
M16: =IF(Data!B34>=D$9,Data!B34-D$9,0) -> 0 | N16: =IF(S16>0,LN(Data!J34),0) -> 0 | O16: 0 | P16: 0 | Q16: 0 | R16: 0 | S16: =IF(Data!B34>'B&R'!D$9,1,0) -> 0 | X16: 102.9 | Y16: =EXP(-2*E$12*(X16/1440)*(-J$15)/(Data!V$24^2*LN('B&R'!J$12))) -> 0.9202869385 | AD16: =IF($D$9<Data!B34,(Data!B35+Data!B33)/2,NA()) ->  | AE16: =IF($D$9<Data!B34,LN('B&R'!$J$12)/(2*PI()*Data!N34/Data!M34),NA()) ->  | AF16: =IF($D$9<Data!B34,LN('B&R'!$J$12)/(2*PI()*(Data!N34-Data!N35)/(Data!M34-Data!M35)),NA()) -> 
M17: =IF(Data!B35>=D$9,Data!B35-D$9,0) -> 0 | N17: =IF(S17>0,LN(Data!J35),0) -> 0 | O17: 0 | P17: 0 | Q17: 0 | R17: 0 | S17: =IF(Data!B35>'B&R'!D$9,1,0) -> 0 | X17: 113.19 | Y17: =EXP(-2*E$12*(X17/1440)*(-J$15)/(Data!V$24^2*LN('B&R'!J$12))) -> 0.9126738012 | AD17: =IF($D$9<Data!B35,(Data!B36+Data!B34)/2,NA()) ->  | AE17: =IF($D$9<Data!B35,LN('B&R'!$J$12)/(2*PI()*Data!N35/Data!M35),NA()) ->  | AF17: =IF($D$9<Data!B35,LN('B&R'!$J$12)/(2*PI()*(Data!N35-Data!N36)/(Data!M35-Data!M36)),NA()) -> 
M18: =IF(Data!B36>=D$9,Data!B36-D$9,0) -> 0 | N18: =IF(S18>0,LN(Data!J36),0) -> 0 | O18: 0 | P18: 0 | Q18: 0 | R18: 0 | S18: =IF(Data!B36>'B&R'!D$9,1,0) -> 0 | U18: Plot Model Line | X18: 123.48 | Y18: =EXP(-2*E$12*(X18/1440)*(-J$15)/(Data!V$24^2*LN('B&R'!J$12))) -> 0.905123644 | AD18: =IF($D$9<Data!B36,(Data!B37+Data!B35)/2,NA()) ->  | AE18: =IF($D$9<Data!B36,LN('B&R'!$J$12)/(2*PI()*Data!N36/Data!M36),NA()) ->  | AF18: =IF($D$9<Data!B36,LN('B&R'!$J$12)/(2*PI()*(Data!N36-Data!N37)/(Data!M36-Data!M37)),NA()) -> 
M19: =IF(Data!B37>=D$9,Data!B37-D$9,0) -> 0 | N19: =IF(S19>0,LN(Data!J37),0) -> 0 | O19: 0 | P19: 0 | Q19: 0 | R19: 0 | S19: =IF(Data!B37>'B&R'!D$9,1,0) -> 0 | U19: 0 | V19: =V11 -> -1.209728516 | X19: 133.77 | Y19: =EXP(-2*E$12*(X19/1440)*(-J$15)/(Data!V$24^2*LN('B&R'!J$12))) -> 0.897635946 | AD19: =IF($D$9<Data!B37,(Data!B38+Data!B36)/2,NA()) ->  | AE19: =IF($D$9<Data!B37,LN('B&R'!$J$12)/(2*PI()*Data!N37/Data!M37),NA()) ->  | AF19: =IF($D$9<Data!B37,LN('B&R'!$J$12)/(2*PI()*(Data!N37-Data!N38)/(Data!M37-Data!M38)),NA()) -> 
J20: Coef. Of | M20: =IF(Data!B38>=D$9,Data!B38-D$9,0) -> 0 | N20: =IF(S20>0,LN(Data!J38),0) -> 0 | O20: 0 | P20: 0 | Q20: 0 | R20: 0 | S20: =IF(Data!B38>'B&R'!D$9,1,0) -> 0 | U20: =MAX(M6:M64) -> 294 | V20: =V11+V12*U20 -> -1.44707071 | X20: 144.06 | Y20: =EXP(-2*E$12*(X20/1440)*(-J$15)/(Data!V$24^2*LN('B&R'!J$12))) -> 0.8902101905 | AD20: =IF($D$9<Data!B38,(Data!B39+Data!B37)/2,NA()) ->  | AE20: =IF($D$9<Data!B38,LN('B&R'!$J$12)/(2*PI()*Data!N38/Data!M38),NA()) ->  | AF20: =IF($D$9<Data!B38,LN('B&R'!$J$12)/(2*PI()*(Data!N38-Data!N39)/(Data!M38-Data!M39)),NA()) -> 
J21: Variation | M21: =IF(Data!B39>=D$9,Data!B39-D$9,0) -> 0 | N21: =IF(S21>0,LN(Data!J39),0) -> 0 | O21: 0 | P21: 0 | Q21: 0 | R21: 0 | S21: =IF(Data!B39>'B&R'!D$9,1,0) -> 0 | X21: 154.35 | Y21: =EXP(-2*E$12*(X21/1440)*(-J$15)/(Data!V$24^2*LN('B&R'!J$12))) -> 0.8828458651 | AD21: =IF($D$9<Data!B39,(Data!B40+Data!B38)/2,NA()) ->  | AE21: =IF($D$9<Data!B39,LN('B&R'!$J$12)/(2*PI()*Data!N39/Data!M39),NA()) ->  | AF21: =IF($D$9<Data!B39,LN('B&R'!$J$12)/(2*PI()*(Data!N39-Data!N40)/(Data!M39-Data!M40)),NA()) -> 
J22: =G12/E12 -> 0.2811831603 | M22: =IF(Data!B40>=D$9,Data!B40-D$9,0) -> 0 | N22: =IF(S22>0,LN(Data!J40),0) -> 0 | O22: 0 | P22: 0 | Q22: 0 | R22: 0 | S22: =IF(Data!B40>'B&R'!D$9,1,0) -> 0 | U22: factor | V22: =Data!V24^2*LN('B&R'!J12)/(2*(-Figures!U27)) -> 0.01959762157 | X22: 164.64 | Y22: =EXP(-2*E$12*(X22/1440)*(-J$15)/(Data!V$24^2*LN('B&R'!J$12))) -> 0.8755424616 | AD22: =IF($D$9<Data!B40,(Data!B41+Data!B39)/2,NA()) ->  | AE22: =IF($D$9<Data!B40,LN('B&R'!$J$12)/(2*PI()*Data!N40/Data!M40),NA()) ->  | AF22: =IF($D$9<Data!B40,LN('B&R'!$J$12)/(2*PI()*(Data!N40-Data!N41)/(Data!M40-Data!M41)),NA()) -> 
M23: =IF(Data!B41>=D$9,Data!B41-D$9,0) -> 0 | N23: =IF(S23>0,LN(Data!J41),0) -> 0 | O23: 0 | P23: 0 | Q23: 0 | R23: 0 | S23: =IF(Data!B41>'B&R'!D$9,1,0) -> 0 | X23: 174.93 | Y23: =EXP(-2*E$12*(X23/1440)*(-J$15)/(Data!V$24^2*LN('B&R'!J$12))) -> 0.868299476 | AD23: =IF($D$9<Data!B41,(Data!B42+Data!B40)/2,NA()) ->  | AE23: =IF($D$9<Data!B41,LN('B&R'!$J$12)/(2*PI()*Data!N41/Data!M41),NA()) ->  | AF23: =IF($D$9<Data!B41,LN('B&R'!$J$12)/(2*PI()*(Data!N41-Data!N42)/(Data!M41-Data!M42)),NA()) -> 
M24: =IF(Data!B42>=D$9,Data!B42-D$9,0) -> 0 | N24: =IF(S24>0,LN(Data!J42),0) -> 0 | O24: 0 | P24: 0 | Q24: 0 | R24: 0 | S24: =IF(Data!B42>'B&R'!D$9,1,0) -> 0 | X24: 185.22 | Y24: =EXP(-2*E$12*(X24/1440)*(-J$15)/(Data!V$24^2*LN('B&R'!J$12))) -> 0.8611164085 | AD24: =IF($D$9<Data!B42,(Data!B43+Data!B41)/2,NA()) ->  | AE24: =IF($D$9<Data!B42,LN('B&R'!$J$12)/(2*PI()*Data!N42/Data!M42),NA()) ->  | AF24: =IF($D$9<Data!B42,LN('B&R'!$J$12)/(2*PI()*(Data!N42-Data!N43)/(Data!M42-Data!M43)),NA()) -> 
M25: =IF(Data!B43>=D$9,Data!B43-D$9,0) -> 0 | N25: =IF(S25>0,LN(Data!J43),0) -> 0 | O25: 0 | P25: 0 | Q25: 0 | R25: 0 | S25: =IF(Data!B43>'B&R'!D$9,1,0) -> 0 | U25: s0 (ft) | V25: =EXP(V19) -> 0.2982782461 | X25: 195.51 | Y25: =EXP(-2*E$12*(X25/1440)*(-J$15)/(Data!V$24^2*LN('B&R'!J$12))) -> 0.8539927635 | AD25: =IF($D$9<Data!B43,(Data!B44+Data!B42)/2,NA()) ->  | AE25: =IF($D$9<Data!B43,LN('B&R'!$J$12)/(2*PI()*Data!N43/Data!M43),NA()) ->  | AF25: =IF($D$9<Data!B43,LN('B&R'!$J$12)/(2*PI()*(Data!N43-Data!N44)/(Data!M43-Data!M44)),NA()) -> 
M26: =IF(Data!B44>=D$9,Data!B44-D$9,0) -> 0 | N26: =IF(S26>0,LN(Data!J44),0) -> 0 | O26: 0 | P26: 0 | Q26: 0 | R26: 0 | S26: =IF(Data!B44>'B&R'!D$9,1,0) -> 0 | X26: 205.8 | Y26: =EXP(-2*E$12*(X26/1440)*(-J$15)/(Data!V$24^2*LN('B&R'!J$12))) -> 0.8469280492 | AD26: =IF($D$9<Data!B44,(Data!B45+Data!B43)/2,NA()) ->  | AE26: =IF($D$9<Data!B44,LN('B&R'!$J$12)/(2*PI()*Data!N44/Data!M44),NA()) ->  | AF26: =IF($D$9<Data!B44,LN('B&R'!$J$12)/(2*PI()*(Data!N44-Data!N45)/(Data!M44-Data!M45)),NA()) -> 
M27: =IF(Data!B45>=D$9,Data!B45-D$9,0) -> 0 | N27: =IF(S27>0,LN(Data!J45),0) -> 0 | O27: 0 | P27: 0 | Q27: 0 | R27: 0 | S27: =IF(Data!B45>'B&R'!D$9,1,0) -> 0 | X27: 216.09 | Y27: =EXP(-2*E$12*(X27/1440)*(-J$15)/(Data!V$24^2*LN('B&R'!J$12))) -> 0.8399217784 | AD27: =IF($D$9<Data!B45,(Data!B46+Data!B44)/2,NA()) ->  | AE27: =IF($D$9<Data!B45,LN('B&R'!$J$12)/(2*PI()*Data!N45/Data!M45),NA()) ->  | AF27: =IF($D$9<Data!B45,LN('B&R'!$J$12)/(2*PI()*(Data!N45-Data!N46)/(Data!M45-Data!M46)),NA()) -> 
M28: =IF(Data!B46>=D$9,Data!B46-D$9,0) -> 0 | N28: =IF(S28>0,LN(Data!J46),0) -> 0 | O28: 0 | P28: 0 | Q28: 0 | R28: 0 | S28: =IF(Data!B46>'B&R'!D$9,1,0) -> 0 | X28: 226.38 | Y28: =EXP(-2*E$12*(X28/1440)*(-J$15)/(Data!V$24^2*LN('B&R'!J$12))) -> 0.8329734673 | AD28: =IF($D$9<Data!B46,(Data!B47+Data!B45)/2,NA()) ->  | AE28: =IF($D$9<Data!B46,LN('B&R'!$J$12)/(2*PI()*Data!N46/Data!M46),NA()) ->  | AF28: =IF($D$9<Data!B46,LN('B&R'!$J$12)/(2*PI()*(Data!N46-Data!N47)/(Data!M46-Data!M47)),NA()) -> 
M29: =IF(Data!B47>=D$9,Data!B47-D$9,0) -> 0 | N29: =IF(S29>0,LN(Data!J47),0) -> 0 | O29: 0 | P29: 0 | Q29: 0 | R29: 0 | S29: =IF(Data!B47>'B&R'!D$9,1,0) -> 0 | X29: 236.67 | Y29: =EXP(-2*E$12*(X29/1440)*(-J$15)/(Data!V$24^2*LN('B&R'!J$12))) -> 0.8260826367 | AD29: =IF($D$9<Data!B47,(Data!B48+Data!B46)/2,NA()) ->  | AE29: =IF($D$9<Data!B47,LN('B&R'!$J$12)/(2*PI()*Data!N47/Data!M47),NA()) ->  | AF29: =IF($D$9<Data!B47,LN('B&R'!$J$12)/(2*PI()*(Data!N47-Data!N48)/(Data!M47-Data!M48)),NA()) -> 
M30: =IF(Data!B48>=D$9,Data!B48-D$9,0) -> 0 | N30: =IF(S30>0,LN(Data!J48),0) -> 0 | O30: 0 | P30: 0 | Q30: 0 | R30: 0 | S30: =IF(Data!B48>'B&R'!D$9,1,0) -> 0 | X30: 246.96 | Y30: =EXP(-2*E$12*(X30/1440)*(-J$15)/(Data!V$24^2*LN('B&R'!J$12))) -> 0.8192488109 | AD30: =IF($D$9<Data!B48,(Data!B49+Data!B47)/2,NA()) ->  | AE30: =IF($D$9<Data!B48,LN('B&R'!$J$12)/(2*PI()*Data!N48/Data!M48),NA()) ->  | AF30: =IF($D$9<Data!B48,LN('B&R'!$J$12)/(2*PI()*(Data!N48-Data!N49)/(Data!M48-Data!M49)),NA()) -> 
M31: =IF(Data!B49>=D$9,Data!B49-D$9,0) -> 0 | N31: =IF(S31>0,LN(Data!J49),0) -> 0 | O31: 0 | P31: 0 | Q31: 0 | R31: 0 | S31: =IF(Data!B49>'B&R'!D$9,1,0) -> 0 | X31: 257.25 | Y31: =EXP(-2*E$12*(X31/1440)*(-J$15)/(Data!V$24^2*LN('B&R'!J$12))) -> 0.8124715184 | AD31: =IF($D$9<Data!B49,(Data!B50+Data!B48)/2,NA()) ->  | AE31: =IF($D$9<Data!B49,LN('B&R'!$J$12)/(2*PI()*Data!N49/Data!M49),NA()) ->  | AF31: =IF($D$9<Data!B49,LN('B&R'!$J$12)/(2*PI()*(Data!N49-Data!N50)/(Data!M49-Data!M50)),NA()) -> 
M32: =IF(Data!B50>=D$9,Data!B50-D$9,0) -> 0 | N32: =IF(S32>0,LN(Data!J50),0) -> 0 | O32: 0 | P32: 0 | Q32: 0 | R32: 0 | S32: =IF(Data!B50>'B&R'!D$9,1,0) -> 0 | X32: 267.54 | Y32: =EXP(-2*E$12*(X32/1440)*(-J$15)/(Data!V$24^2*LN('B&R'!J$12))) -> 0.8057502916 | AD32: =IF($D$9<Data!B50,(Data!B51+Data!B49)/2,NA()) ->  | AE32: =IF($D$9<Data!B50,LN('B&R'!$J$12)/(2*PI()*Data!N50/Data!M50),NA()) ->  | AF32: =IF($D$9<Data!B50,LN('B&R'!$J$12)/(2*PI()*(Data!N50-Data!N51)/(Data!M50-Data!M51)),NA()) -> 
M33: =IF(Data!B51>=D$9,Data!B51-D$9,0) -> 0 | N33: =IF(S33>0,LN(Data!J51),0) -> 0 | O33: 0 | P33: 0 | Q33: 0 | R33: 0 | S33: =IF(Data!B51>'B&R'!D$9,1,0) -> 0 | X33: 277.83 | Y33: =EXP(-2*E$12*(X33/1440)*(-J$15)/(Data!V$24^2*LN('B&R'!J$12))) -> 0.7990846665 | AD33: =IF($D$9<Data!B51,(Data!B52+Data!B50)/2,NA()) ->  | AE33: =IF($D$9<Data!B51,LN('B&R'!$J$12)/(2*PI()*Data!N51/Data!M51),NA()) ->  | AF33: =IF($D$9<Data!B51,LN('B&R'!$J$12)/(2*PI()*(Data!N51-Data!N52)/(Data!M51-Data!M52)),NA()) -> 
M34: =IF(Data!B52>=D$9,Data!B52-D$9,0) -> 0 | N34: =IF(S34>0,LN(Data!J52),0) -> 0 | O34: 0 | P34: 0 | Q34: 0 | R34: 0 | S34: =IF(Data!B52>'B&R'!D$9,1,0) -> 0 | X34: 288.12 | Y34: =EXP(-2*E$12*(X34/1440)*(-J$15)/(Data!V$24^2*LN('B&R'!J$12))) -> 0.7924741833 | AD34: =IF($D$9<Data!B52,(Data!B53+Data!B51)/2,NA()) ->  | AE34: =IF($D$9<Data!B52,LN('B&R'!$J$12)/(2*PI()*Data!N52/Data!M52),NA()) ->  | AF34: =IF($D$9<Data!B52,LN('B&R'!$J$12)/(2*PI()*(Data!N52-Data!N53)/(Data!M52-Data!M53)),NA()) -> 
B35: C coefficient calculated from Eq. 6.5(c) of Butler, The Design, Performance, and | M35: =IF(Data!B53>=D$9,Data!B53-D$9,0) -> 0 | N35: =IF(S35>0,LN(Data!J53),0) -> 0 | O35: 0 | P35: 0 | Q35: 0 | R35: 0 | S35: =IF(Data!B53>'B&R'!D$9,1,0) -> 0 | X35: 298.41 | Y35: =EXP(-2*E$12*(X35/1440)*(-J$15)/(Data!V$24^2*LN('B&R'!J$12))) -> 0.7859183858 | AD35: =IF($D$9<Data!B53,(Data!B54+Data!B52)/2,NA()) ->  | AE35: =IF($D$9<Data!B53,LN('B&R'!$J$12)/(2*PI()*Data!N53/Data!M53),NA()) ->  | AF35: =IF($D$9<Data!B53,LN('B&R'!$J$12)/(2*PI()*(Data!N53-Data!N54)/(Data!M53-Data!M54)),NA()) -> 
B36: Analysis of Slug Tests, CRC Press, 2000. | M36: =IF(Data!B54>=D$9,Data!B54-D$9,0) -> 0 | N36: =IF(S36>0,LN(Data!J54),0) -> 0 | O36: 0 | P36: 0 | Q36: 0 | R36: 0 | S36: =IF(Data!B54>'B&R'!D$9,1,0) -> 0 | X36: 308.7 | Y36: =EXP(-2*E$12*(X36/1440)*(-J$15)/(Data!V$24^2*LN('B&R'!J$12))) -> 0.7794168216 | AD36: =IF($D$9<Data!B54,(Data!B55+Data!B53)/2,NA()) ->  | AE36: =IF($D$9<Data!B54,LN('B&R'!$J$12)/(2*PI()*Data!N54/Data!M54),NA()) ->  | AF36: =IF($D$9<Data!B54,LN('B&R'!$J$12)/(2*PI()*(Data!N54-Data!N55)/(Data!M54-Data!M55)),NA()) -> 
M37: =IF(Data!B55>=D$9,Data!B55-D$9,0) -> 0 | N37: =IF(S37>0,LN(Data!J55),0) -> 0 | O37: 0 | P37: 0 | Q37: 0 | R37: 0 | S37: =IF(Data!B55>'B&R'!D$9,1,0) -> 0 | AD37: =IF($D$9<Data!B55,(Data!B56+Data!B54)/2,NA()) ->  | AE37: =IF($D$9<Data!B55,LN('B&R'!$J$12)/(2*PI()*Data!N55/Data!M55),NA()) ->  | AF37: =IF($D$9<Data!B55,LN('B&R'!$J$12)/(2*PI()*(Data!N55-Data!N56)/(Data!M55-Data!M56)),NA()) -> 
M38: =IF(Data!B56>=D$9,Data!B56-D$9,0) -> 0 | N38: =IF(S38>0,LN(Data!J56),0) -> 0 | O38: 0 | P38: 0 | Q38: 0 | R38: 0 | S38: =IF(Data!B56>'B&R'!D$9,1,0) -> 0 | AD38: =IF($D$9<Data!B56,(Data!B57+Data!B55)/2,NA()) ->  | AE38: =IF($D$9<Data!B56,LN('B&R'!$J$12)/(2*PI()*Data!N56/Data!M56),NA()) ->  | AF38: =IF($D$9<Data!B56,LN('B&R'!$J$12)/(2*PI()*(Data!N56-Data!N57)/(Data!M56-Data!M57)),NA()) -> 
M39: =IF(Data!B57>=D$9,Data!B57-D$9,0) -> 0 | N39: =IF(S39>0,LN(Data!J57),0) -> 0 | O39: 0 | P39: 0 | Q39: 0 | R39: 0 | S39: =IF(Data!B57>'B&R'!D$9,1,0) -> 0 | X39: =TRUNC(100*E12)/100 -> 0.02 | AD39: =IF($D$9<Data!B57,(Data!B58+Data!B56)/2,NA()) ->  | AE39: =IF($D$9<Data!B57,LN('B&R'!$J$12)/(2*PI()*Data!N57/Data!M57),NA()) ->  | AF39: =IF($D$9<Data!B57,LN('B&R'!$J$12)/(2*PI()*(Data!N57-Data!N58)/(Data!M57-Data!M58)),NA()) -> 
M40: =IF(Data!B58>=D$9,Data!B58-D$9,0) -> 0 | N40: =IF(S40>0,LN(Data!J58),0) -> 0 | O40: 0 | P40: 0 | Q40: 0 | R40: 0 | S40: =IF(Data!B58>'B&R'!D$9,1,0) -> 0 | X40: =X39 -> 0.02 | AD40: =IF($D$9<Data!B58,(Data!B59+Data!B57)/2,NA()) ->  | AE40: =IF($D$9<Data!B58,LN('B&R'!$J$12)/(2*PI()*Data!N58/Data!M58),NA()) ->  | AF40: =IF($D$9<Data!B58,LN('B&R'!$J$12)/(2*PI()*(Data!N58-Data!N59)/(Data!M58-Data!M59)),NA()) -> 
M41: =IF(Data!B59>=D$9,Data!B59-D$9,0) -> 0 | N41: =IF(S41>0,LN(Data!J59),0) -> 0 | O41: 0 | P41: 0 | Q41: 0 | R41: 0 | S41: =IF(Data!B59>'B&R'!D$9,1,0) -> 0 | X41: =CONCATENATE(" T = ",X40," ft2/d") -> T = 0.02 ft2/d | AD41: =IF($D$9<Data!B59,(Data!B60+Data!B58)/2,NA()) ->  | AE41: =IF($D$9<Data!B59,LN('B&R'!$J$12)/(2*PI()*Data!N59/Data!M59),NA()) ->  | AF41: =IF($D$9<Data!B59,LN('B&R'!$J$12)/(2*PI()*(Data!N59-Data!N60)/(Data!M59-Data!M60)),NA()) -> 
M42: =IF(Data!B60>=D$9,Data!B60-D$9,0) -> 0 | N42: =IF(S42>0,LN(Data!J60),0) -> 0 | O42: 0 | P42: 0 | Q42: 0 | R42: 0 | S42: =IF(Data!B60>'B&R'!D$9,1,0) -> 0 | AD42: =IF($D$9<Data!B60,(Data!B61+Data!B59)/2,NA()) ->  | AE42: =IF($D$9<Data!B60,LN('B&R'!$J$12)/(2*PI()*Data!N60/Data!M60),NA()) ->  | AF42: =IF($D$9<Data!B60,LN('B&R'!$J$12)/(2*PI()*(Data!N60-Data!N61)/(Data!M60-Data!M61)),NA()) -> 
M43: =IF(Data!B61>=D$9,Data!B61-D$9,0) -> 0 | N43: =IF(S43>0,LN(Data!J61),0) -> 0 | O43: 0 | P43: 0 | Q43: 0 | R43: 0 | S43: =IF(Data!B61>'B&R'!D$9,1,0) -> 0 | AD43: =IF($D$9<Data!B61,(Data!B62+Data!B60)/2,NA()) ->  | AE43: =IF($D$9<Data!B61,LN('B&R'!$J$12)/(2*PI()*Data!N61/Data!M61),NA()) ->  | AF43: =IF($D$9<Data!B61,LN('B&R'!$J$12)/(2*PI()*(Data!N61-Data!N62)/(Data!M61-Data!M62)),NA()) -> 
M44: =IF(Data!B62>=D$9,Data!B62-D$9,0) -> 0 | N44: =IF(S44>0,LN(Data!J62),0) -> 0 | O44: 0 | P44: 0 | Q44: 0 | R44: 0 | S44: =IF(Data!B62>'B&R'!D$9,1,0) -> 0 | AD44: =IF($D$9<Data!B62,(Data!B63+Data!B61)/2,NA()) ->  | AE44: =IF($D$9<Data!B62,LN('B&R'!$J$12)/(2*PI()*Data!N62/Data!M62),NA()) ->  | AF44: =IF($D$9<Data!B62,LN('B&R'!$J$12)/(2*PI()*(Data!N62-Data!N63)/(Data!M62-Data!M63)),NA()) -> 
M45: =IF(Data!B63>=D$9,Data!B63-D$9,0) -> 0 | N45: =IF(S45>0,LN(Data!J63),0) -> 0 | O45: 0 | P45: 0 | Q45: 0 | R45: 0 | S45: =IF(Data!B63>'B&R'!D$9,1,0) -> 0 | AD45: =IF($D$9<Data!B63,(Data!B64+Data!B62)/2,NA()) ->  | AE45: =IF($D$9<Data!B63,LN('B&R'!$J$12)/(2*PI()*Data!N63/Data!M63),NA()) ->  | AF45: =IF($D$9<Data!B63,LN('B&R'!$J$12)/(2*PI()*(Data!N63-Data!N64)/(Data!M63-Data!M64)),NA()) -> 
M46: =IF(Data!B64>=D$9,Data!B64-D$9,0) -> 0 | N46: =IF(S46>0,LN(Data!J64),0) -> 0 | O46: 0 | P46: 0 | Q46: 0 | R46: 0 | S46: =IF(Data!B64>'B&R'!D$9,1,0) -> 0 | AD46: =IF($D$9<Data!B64,(Data!B65+Data!B63)/2,NA()) ->  | AE46: =IF($D$9<Data!B64,LN('B&R'!$J$12)/(2*PI()*Data!N64/Data!M64),NA()) ->  | AF46: =IF($D$9<Data!B64,LN('B&R'!$J$12)/(2*PI()*(Data!N64-Data!N65)/(Data!M64-Data!M65)),NA()) -> 
M47: =IF(Data!B65>=D$9,Data!B65-D$9,0) -> 0 | N47: =IF(S47>0,LN(Data!J65),0) -> 0 | O47: 0 | P47: 0 | Q47: 0 | R47: 0 | S47: =IF(Data!B65>'B&R'!D$9,1,0) -> 0 | AD47: =IF($D$9<Data!B65,(Data!B66+Data!B64)/2,NA()) ->  | AE47: =IF($D$9<Data!B65,LN('B&R'!$J$12)/(2*PI()*Data!N65/Data!M65),NA()) ->  | AF47: =IF($D$9<Data!B65,LN('B&R'!$J$12)/(2*PI()*(Data!N65-Data!N66)/(Data!M65-Data!M66)),NA()) -> 
M48: =IF(Data!B66>=D$9,Data!B66-D$9,0) -> 0 | N48: =IF(S48>0,LN(Data!J66),0) -> 0 | O48: =M48^2 -> 0 | P48: =M48*N48 -> 0 | Q48: 0 | R48: =IF(M48>0,(N48-V$11-V$12*M48)/SQRT(V$14),0) -> 0 | S48: =IF(Data!B66>'B&R'!D$9,1,0) -> 0 | T48: =IF(S48=0,NA(),EXP(N48)/EXP(V$19)) ->  | AD48: =IF($D$9<Data!B66,(Data!B67+Data!B65)/2,NA()) ->  | AE48: =IF($D$9<Data!B66,LN('B&R'!$J$12)/(2*PI()*Data!N66/Data!M66),NA()) ->  | AF48: =IF($D$9<Data!B66,LN('B&R'!$J$12)/(2*PI()*(Data!N66-Data!N67)/(Data!M66-Data!M67)),NA()) -> 
M49: =IF(Data!B67>=D$9,Data!B67-D$9,0) -> 0 | N49: =IF(S49>0,LN(Data!J67),0) -> 0 | O49: 0 | P49: 0 | Q49: 0 | R49: 0 | S49: =IF(Data!B67>'B&R'!D$9,1,0) -> 0 | AD49: =IF($D$9<Data!B67,(Data!B68+Data!B66)/2,NA()) ->  | AE49: =IF($D$9<Data!B67,LN('B&R'!$J$12)/(2*PI()*Data!N67/Data!M67),NA()) ->  | AF49: =IF($D$9<Data!B67,LN('B&R'!$J$12)/(2*PI()*(Data!N67-Data!N68)/(Data!M67-Data!M68)),NA()) -> 
M50: =IF(Data!B68>=D$9,Data!B68-D$9,0) -> 0 | N50: =IF(S50>0,LN(Data!J68),0) -> 0 | O50: 0 | P50: 0 | Q50: 0 | R50: 0 | S50: =IF(Data!B68>'B&R'!D$9,1,0) -> 0 | AD50: =IF($D$9<Data!B68,(Data!B69+Data!B67)/2,NA()) ->  | AE50: =IF($D$9<Data!B68,LN('B&R'!$J$12)/(2*PI()*Data!N68/Data!M68),NA()) ->  | AF50: =IF($D$9<Data!B68,LN('B&R'!$J$12)/(2*PI()*(Data!N68-Data!N69)/(Data!M68-Data!M69)),NA()) -> 
M51: =IF(Data!B69>=D$9,Data!B69-D$9,0) -> 0 | N51: =IF(S51>0,LN(Data!J69),0) -> 0 | O51: 0 | P51: 0 | Q51: 0 | R51: 0 | S51: =IF(Data!B69>'B&R'!D$9,1,0) -> 0 | AD51: =IF($D$9<Data!B69,(Data!B70+Data!B68)/2,NA()) ->  | AE51: =IF($D$9<Data!B69,LN('B&R'!$J$12)/(2*PI()*Data!N69/Data!M69),NA()) ->  | AF51: =IF($D$9<Data!B69,LN('B&R'!$J$12)/(2*PI()*(Data!N69-Data!N70)/(Data!M69-Data!M70)),NA()) -> 
M52: =IF(Data!B70>=D$9,Data!B70-D$9,0) -> 0 | N52: =IF(S52>0,LN(Data!J70),0) -> 0 | O52: 0 | P52: 0 | Q52: 0 | R52: 0 | S52: =IF(Data!B70>'B&R'!D$9,1,0) -> 0 | AD52: =IF($D$9<Data!B70,(Data!B71+Data!B69)/2,NA()) ->  | AE52: =IF($D$9<Data!B70,LN('B&R'!$J$12)/(2*PI()*Data!N70/Data!M70),NA()) ->  | AF52: =IF($D$9<Data!B70,LN('B&R'!$J$12)/(2*PI()*(Data!N70-Data!N71)/(Data!M70-Data!M71)),NA()) -> 
M53: =IF(Data!B71>=D$9,Data!B71-D$9,0) -> 0 | N53: =IF(S53>0,LN(Data!J71),0) -> 0 | O53: 0 | P53: 0 | Q53: 0 | R53: 0 | S53: =IF(Data!B71>'B&R'!D$9,1,0) -> 0 | AD53: =IF($D$9<Data!B71,(Data!B72+Data!B70)/2,NA()) ->  | AE53: =IF($D$9<Data!B71,LN('B&R'!$J$12)/(2*PI()*Data!N71/Data!M71),NA()) ->  | AF53: =IF($D$9<Data!B71,LN('B&R'!$J$12)/(2*PI()*(Data!N71-Data!N72)/(Data!M71-Data!M72)),NA()) -> 
M54: =IF(Data!B72>=D$9,Data!B72-D$9,0) -> 0 | N54: =IF(S54>0,LN(Data!J72),0) -> 0 | O54: 0 | P54: 0 | Q54: 0 | R54: 0 | S54: =IF(Data!B72>'B&R'!D$9,1,0) -> 0 | AD54: =IF($D$9<Data!B72,(Data!B73+Data!B71)/2,NA()) ->  | AE54: =IF($D$9<Data!B72,LN('B&R'!$J$12)/(2*PI()*Data!N72/Data!M72),NA()) ->  | AF54: =IF($D$9<Data!B72,LN('B&R'!$J$12)/(2*PI()*(Data!N72-Data!N73)/(Data!M72-Data!M73)),NA()) -> 
M55: =IF(Data!B73>=D$9,Data!B73-D$9,0) -> 0 | N55: =IF(S55>0,LN(Data!J73),0) -> 0 | O55: 0 | P55: 0 | Q55: 0 | R55: 0 | S55: =IF(Data!B73>'B&R'!D$9,1,0) -> 0 | AD55: =IF($D$9<Data!B73,(Data!B74+Data!B72)/2,NA()) ->  | AE55: =IF($D$9<Data!B73,LN('B&R'!$J$12)/(2*PI()*Data!N73/Data!M73),NA()) ->  | AF55: =IF($D$9<Data!B73,LN('B&R'!$J$12)/(2*PI()*(Data!N73-Data!N74)/(Data!M73-Data!M74)),NA()) -> 
M56: =IF(Data!B74>=D$9,Data!B74-D$9,0) -> 0 | N56: =IF(S56>0,LN(Data!J74),0) -> 0 | O56: 0 | P56: 0 | Q56: 0 | R56: 0 | S56: =IF(Data!B74>'B&R'!D$9,1,0) -> 0 | AD56: =IF($D$9<Data!B74,(Data!B75+Data!B73)/2,NA()) ->  | AE56: =IF($D$9<Data!B74,LN('B&R'!$J$12)/(2*PI()*Data!N74/Data!M74),NA()) ->  | AF56: =IF($D$9<Data!B74,LN('B&R'!$J$12)/(2*PI()*(Data!N74-Data!N75)/(Data!M74-Data!M75)),NA()) -> 
M57: =IF(Data!B75>=D$9,Data!B75-D$9,0) -> 0 | N57: =IF(S57>0,LN(Data!J75),0) -> 0 | O57: 0 | P57: 0 | Q57: 0 | R57: 0 | S57: =IF(Data!B75>'B&R'!D$9,1,0) -> 0 | AD57: =IF($D$9<Data!B75,(Data!B76+Data!B74)/2,NA()) ->  | AE57: =IF($D$9<Data!B75,LN('B&R'!$J$12)/(2*PI()*Data!N75/Data!M75),NA()) ->  | AF57: =IF($D$9<Data!B75,LN('B&R'!$J$12)/(2*PI()*(Data!N75-Data!N76)/(Data!M75-Data!M76)),NA()) -> 
M58: =IF(Data!B76>=D$9,Data!B76-D$9,0) -> 0 | N58: =IF(S58>0,LN(Data!J76),0) -> 0 | O58: 0 | P58: 0 | Q58: 0 | R58: 0 | S58: =IF(Data!B76>'B&R'!D$9,1,0) -> 0 | AD58: =IF($D$9<Data!B76,(Data!B77+Data!B75)/2,NA()) ->  | AE58: =IF($D$9<Data!B76,LN('B&R'!$J$12)/(2*PI()*Data!N76/Data!M76),NA()) ->  | AF58: =IF($D$9<Data!B76,LN('B&R'!$J$12)/(2*PI()*(Data!N76-Data!N77)/(Data!M76-Data!M77)),NA()) -> 
M59: =IF(Data!B77>=D$9,Data!B77-D$9,0) -> 0 | N59: =IF(S59>0,LN(Data!J77),0) -> 0 | O59: 0 | P59: 0 | Q59: 0 | R59: 0 | S59: =IF(Data!B77>'B&R'!D$9,1,0) -> 0 | AD59: =IF($D$9<Data!B77,(Data!B78+Data!B76)/2,NA()) ->  | AE59: =IF($D$9<Data!B77,LN('B&R'!$J$12)/(2*PI()*Data!N77/Data!M77),NA()) ->  | AF59: =IF($D$9<Data!B77,LN('B&R'!$J$12)/(2*PI()*(Data!N77-Data!N78)/(Data!M77-Data!M78)),NA()) -> 
M60: =IF(Data!B78>=D$9,Data!B78-D$9,0) -> 0 | N60: =IF(S60>0,LN(Data!J78),0) -> 0 | O60: 0 | P60: 0 | Q60: 0 | R60: 0 | S60: =IF(Data!B78>'B&R'!D$9,1,0) -> 0 | AD60: =IF($D$9<Data!B78,(Data!B79+Data!B77)/2,NA()) ->  | AE60: =IF($D$9<Data!B78,LN('B&R'!$J$12)/(2*PI()*Data!N78/Data!M78),NA()) ->  | AF60: =IF($D$9<Data!B78,LN('B&R'!$J$12)/(2*PI()*(Data!N78-Data!N79)/(Data!M78-Data!M79)),NA()) -> 
M61: =IF(Data!B79>=D$9,Data!B79-D$9,0) -> 0 | N61: =IF(S61>0,LN(Data!J79),0) -> 0 | O61: =M61^2 -> 0 | P61: =M61*N61 -> 0 | Q61: 0 | R61: =IF(M61>0,(N61-V$11-V$12*M61)/SQRT(V$14),0) -> 0 | S61: =IF(Data!B79>'B&R'!D$9,1,0) -> 0 | T61: =IF(S61=0,NA(),EXP(N61)/EXP(V$19)) ->  | AD61: =IF($D$9<Data!B79,(Data!B80+Data!B78)/2,NA()) ->  | AE61: =IF($D$9<Data!B79,LN('B&R'!$J$12)/(2*PI()*Data!N79/Data!M79),NA()) ->  | AF61: =IF($D$9<Data!B79,LN('B&R'!$J$12)/(2*PI()*(Data!N79-Data!N80)/(Data!M79-Data!M80)),NA()) -> 
M62: =IF(Data!B80>=D$9,Data!B80-D$9,0) -> 0 | N62: =IF(S62>0,LN(Data!J80),0) -> 0 | O62: 0 | P62: 0 | Q62: 0 | R62: 0 | S62: =IF(Data!B80>'B&R'!D$9,1,0) -> 0 | AD62: =IF($D$9<Data!B80,(Data!B81+Data!B79)/2,NA()) ->  | AE62: =IF($D$9<Data!B80,LN('B&R'!$J$12)/(2*PI()*Data!N80/Data!M80),NA()) ->  | AF62: =IF($D$9<Data!B80,LN('B&R'!$J$12)/(2*PI()*(Data!N80-Data!N81)/(Data!M80-Data!M81)),NA()) -> 
M63: =IF(Data!B81>=D$9,Data!B81-D$9,0) -> 0 | N63: =IF(S63>0,LN(Data!J81),0) -> 0 | O63: 0 | P63: 0 | Q63: 0 | R63: 0 | S63: =IF(Data!B81>'B&R'!D$9,1,0) -> 0 | AD63: =IF($D$9<Data!B81,(Data!B82+Data!B80)/2,NA()) ->  | AE63: =IF($D$9<Data!B81,LN('B&R'!$J$12)/(2*PI()*Data!N81/Data!M81),NA()) ->  | AF63: =IF($D$9<Data!B81,LN('B&R'!$J$12)/(2*PI()*(Data!N81-Data!N82)/(Data!M81-Data!M82)),NA()) -> 
M64: =IF(Data!B82>=D$9,Data!B82-D$9,0) -> 0 | N64: =IF(S64>0,LN(Data!J82),0) -> 0 | O64: 0 | P64: 0 | Q64: 0 | R64: 0 | S64: =IF(Data!B82>'B&R'!D$9,1,0) -> 0 | AD64: =IF($D$9<Data!B82,(Data!B83+Data!B81)/2,NA()) ->  | AE64: =IF($D$9<Data!B82,LN('B&R'!$J$12)/(2*PI()*Data!N82/Data!M82),NA()) ->  | AF64: =IF($D$9<Data!B82,LN('B&R'!$J$12)/(2*PI()*(Data!N82-Data!N83)/(Data!M82-Data!M83)),NA()) -> 

Sheet C&J
A1: Cooper and Jacob (1946)
A2: Well Designation: | C2: =IF(Data!B1 > 0,Data!B1,"") -> MW16 | W2: =E10 -> 4 | X2: =E9 -> 20 | Y2: 0
A3: Date: | C3: =IF(Data!B2 > 0,Data!B2,"") -> 2021-11-09 | P3: 0 | Q3: =MAX(P9:Q58) -> 0.04009204376 | W3: =W2 -> 4 | X3: =X2 -> 20 | Y3: =J50 -> 70
P4: 0 | Q4: =Q3 -> 0.04009204376
X5: =MAX(T9:T66)+10 -> 221
N7: Index | O7: ti | P7: Vi (meas) | Q7: Vi (calc) | R7: SE | T7: Time | U7: Qn/sn | W7: Index | X7: Time | Y7: Qn/sn | Z7: A-Time
B8: Enter early time cut-off for least-squares model fit
C9: Timecut (min): | E9: 20 | F9: <- Enter or change values here | N9: 1 | O9: =IF(Data!L25>=E$9,Data!L25-E$10,0) -> 0 | P9: =IF(O9>0,7.48*Data!M25*(Data!B25-Data!B24)/1440,0) -> 0 | Q9: =IF(O9>0,7.48*(4*PI()*(E$16/1440)*Data!N25)*(Data!B25-Data!B24)/LN(0.56146/((Data!P25^2*'C&J'!E$15)/(4*('C&J'!E$16/1440)*O9))),0) -> 0 | R9: =(P9-Q9)^2 -> 0 | T9: =Data!L25 -> 4 | U9: =Data!M25/Data!N25 -> 0.4305442351 | W9: 0 | X9: =2+(X$5-2)*W9/50 -> 2 | Y9: =4*PI()*E$18/LN(0.56146/(Data!V$24^2*'C&J'!E$15/(4*'C&J'!E$18*'C&J'!X9/1440))) -> 0.584772544 | Z9: =X9+E$10 -> 6
B10: Time Adjustment (min): | E10: 4 | N10: 2 | O10: =IF(Data!L26>=E$9,Data!L26-E$10,0) -> 0 | P10: =IF(O10>0,P9+7.48*Data!M26*(Data!B26-Data!B25)/1440,0) -> 0 | Q10: =IF(O10>0,Q9+7.48*(4*PI()*(E$16/1440)*Data!N26)*(Data!B26-Data!B25)/LN(0.56146/((Data!P26^2*'C&J'!E$15)/(4*('C&J'!E$16/1440)*O10))),0) -> 0 | R10: =(P10-Q10)^2 -> 0 | T10: =Data!L26 -> 11 | U10: =Data!M26/Data!N26 -> 1.414847667 | W10: 1 | X10: =2+(X$5-2)*W10/50 -> 6.38 | Y10: =4*PI()*E$18/LN(0.56146/(Data!V$24^2*'C&J'!E$15/(4*'C&J'!E$18*'C&J'!X10/1440))) -> 0.2488890282 | Z10: =X10+E$10 -> 10.38
N11: 3 | O11: =IF(Data!L27>=E$9,Data!L27-E$10,0) -> 34 | P11: =IF(O11>0,P10+7.48*Data!M27*(Data!B27-Data!B26)/1440,0) -> 0.01241223151 | Q11: =IF(O11>0,Q10+7.48*(4*PI()*(E$16/1440)*Data!N27)*(Data!B27-Data!B26)/LN(0.56146/((Data!P27^2*'C&J'!E$15)/(4*('C&J'!E$16/1440)*O11))),0) -> 0.009594770708 | R11: 7.938085387e-06 | T11: =Data!L27 -> 38 | U11: =Data!M27/Data!N27 -> 0.1760884676 | W11: 2 | X11: 10.76 | Y11: =4*PI()*E$18/LN(0.56146/(Data!V$24^2*'C&J'!E$15/(4*'C&J'!E$18*'C&J'!X11/1440))) -> 0.1977195516 | Z11: 14.76
B12: Trial Sn: | E12: d | F12: <-- Enter d for default or enter Sn value | N12: 4 | O12: =IF(Data!L28>=E$9,Data!L28-E$10,0) -> 87 | P12: =IF(O12>0,P11+7.48*Data!M28*(Data!B28-Data!B27)/1440,0) -> 0.02234201672 | Q12: =IF(O12>0,Q11+7.48*(4*PI()*(E$16/1440)*Data!N28)*(Data!B28-Data!B27)/LN(0.56146/((Data!P28^2*'C&J'!E$15)/(4*('C&J'!E$16/1440)*O12))),0) -> 0.01872589164 | R12: 1.307636061e-05 | T12: =Data!L28 -> 91 | U12: =Data!M28/Data!N28 -> 0.1180010126 | W12: 3 | X12: 15.14 | Y12: =4*PI()*E$18/LN(0.56146/(Data!V$24^2*'C&J'!E$15/(4*'C&J'!E$18*'C&J'!X12/1440))) -> 0.1743049792 | Z12: 19.14
N13: 5 | O13: =IF(Data!L29>=E$9,Data!L29-E$10,0) -> 207 | P13: =IF(O13>0,P12+7.48*Data!M29*(Data!B29-Data!B28)/1440,0) -> 0.03723669454 | Q13: =IF(O13>0,Q12+7.48*(4*PI()*(E$16/1440)*Data!N29)*(Data!B29-Data!B28)/LN(0.56146/((Data!P29^2*'C&J'!E$15)/(4*('C&J'!E$16/1440)*O13))),0) -> 0.04009204376 | R13: 8.153019181e-06 | T13: =Data!L29 -> 211 | U13: =Data!M29/Data!N29 -> 0.0637205468 | W13: 4 | X13: 19.52 | Y13: =4*PI()*E$18/LN(0.56146/(Data!V$24^2*'C&J'!E$15/(4*'C&J'!E$18*'C&J'!X13/1440))) -> 0.1601900412 | Z13: 23.52
B14: Root-Mean-Square Error: | E14: =SQRT(SUM(R9:R58)) -> 0.005400691176 | F14: <-- Minimize this using "Solver" | N14: 6 | O14: =IF(Data!L30>=E$9,Data!L30-E$10,0) -> 0 | P14: =IF(O14>0,P13+7.48*Data!M30*(Data!B30-Data!B29)/1440,0) -> 0 | Q14: =IF(O14>0,Q13+7.48*(4*PI()*(E$16/1440)*Data!N30)*(Data!B30-Data!B29)/LN(0.56146/((Data!P30^2*'C&J'!E$15)/(4*('C&J'!E$16/1440)*O14))),0) -> 0 | R14: 0 | T14: =Data!L30 -> 0 | U14: =Data!M30/Data!N30 ->  | W14: 5 | X14: 23.9 | Y14: =4*PI()*E$18/LN(0.56146/(Data!V$24^2*'C&J'!E$15/(4*'C&J'!E$18*'C&J'!X14/1440))) -> 0.150481737 | Z14: 27.9
E15: =IF(E12="d",0.025*SQRT(E16),E12) -> 0.005 | F15: <-- Working Sn | N15: 7 | O15: =IF(Data!L31>=E$9,Data!L31-E$10,0) -> 0 | P15: =IF(O15>0,P14+7.48*Data!M31*(Data!B31-Data!B30)/1440,0) -> 0 | Q15: =IF(O15>0,Q14+7.48*(4*PI()*(E$16/1440)*Data!N31)*(Data!B31-Data!B30)/LN(0.56146/((Data!P31^2*'C&J'!E$15)/(4*('C&J'!E$16/1440)*O15))),0) -> 0 | R15: 0 | T15: =Data!L31 -> 0 | U15: =Data!M31/Data!N31 ->  | W15: 6 | X15: 28.28 | Y15: =4*PI()*E$18/LN(0.56146/(Data!V$24^2*'C&J'!E$15/(4*'C&J'!E$18*'C&J'!X15/1440))) -> 0.1432644252 | Z15: 32.28
B16: Trial Tn (ft2/d): | E16: 0.04 | F16: <-- By changing Tn through "Solver" | N16: 8 | O16: =IF(Data!L32>=E$9,Data!L32-E$10,0) -> 0 | P16: =IF(O16>0,P15+7.48*Data!M32*(Data!B32-Data!B31)/1440,0) -> 0 | Q16: =IF(O16>0,Q15+7.48*(4*PI()*(E$16/1440)*Data!N32)*(Data!B32-Data!B31)/LN(0.56146/((Data!P32^2*'C&J'!E$15)/(4*('C&J'!E$16/1440)*O16))),0) -> 0 | R16: 0 | T16: =Data!L32 -> 0 | U16: =Data!M32/Data!N32 ->  | W16: 7 | X16: 32.66 | Y16: =4*PI()*E$18/LN(0.56146/(Data!V$24^2*'C&J'!E$15/(4*'C&J'!E$18*'C&J'!X16/1440))) -> 0.1376164844 | Z16: 36.66
G17: Add constraint Tn > 0.00001 | N17: 9 | O17: =IF(Data!L33>=E$9,Data!L33-E$10,0) -> 0 | P17: =IF(O17>0,P16+7.48*Data!M33*(Data!B33-Data!B32)/1440,0) -> 0 | Q17: =IF(O17>0,Q16+7.48*(4*PI()*(E$16/1440)*Data!N33)*(Data!B33-Data!B32)/LN(0.56146/((Data!P33^2*'C&J'!E$15)/(4*('C&J'!E$16/1440)*O17))),0) -> 0 | R17: 0 | T17: =Data!L33 -> 0 | U17: =Data!M33/Data!N33 ->  | W17: 8 | X17: 37.04 | Y17: =4*PI()*E$18/LN(0.56146/(Data!V$24^2*'C&J'!E$15/(4*'C&J'!E$18*'C&J'!X17/1440))) -> 0.1330329162 | Z17: 41.04
B18: Model Result: | D18: Tn (ft2/d) = | E18: =E16 -> 0.04 | N18: 10 | O18: =IF(Data!L34>=E$9,Data!L34-E$10,0) -> 0 | P18: =IF(O18>0,P17+7.48*Data!M34*(Data!B34-Data!B33)/1440,0) -> 0 | Q18: =IF(O18>0,Q17+7.48*(4*PI()*(E$16/1440)*Data!N34)*(Data!B34-Data!B33)/LN(0.56146/((Data!P34^2*'C&J'!E$15)/(4*('C&J'!E$16/1440)*O18))),0) -> 0 | R18: 0 | T18: =Data!L34 -> 0 | U18: =Data!M34/Data!N34 ->  | W18: 9 | X18: 41.42 | Y18: =4*PI()*E$18/LN(0.56146/(Data!V$24^2*'C&J'!E$15/(4*'C&J'!E$18*'C&J'!X18/1440))) -> 0.1292108706 | Z18: 45.42
N19: 11 | O19: =IF(Data!L35>=E$9,Data!L35-E$10,0) -> 0 | P19: =IF(O19>0,P18+7.48*Data!M35*(Data!B35-Data!B34)/1440,0) -> 0 | Q19: =IF(O19>0,Q18+7.48*(4*PI()*(E$16/1440)*Data!N35)*(Data!B35-Data!B34)/LN(0.56146/((Data!P35^2*'C&J'!E$15)/(4*('C&J'!E$16/1440)*O19))),0) -> 0 | R19: 0 | T19: =Data!L35 -> 0 | U19: =Data!M35/Data!N35 ->  | W19: 10 | X19: 45.8 | Y19: =4*PI()*E$18/LN(0.56146/(Data!V$24^2*'C&J'!E$15/(4*'C&J'!E$18*'C&J'!X19/1440))) -> 0.1259562351 | Z19: 49.8
N20: 12 | O20: =IF(Data!L36>=E$9,Data!L36-E$10,0) -> 0 | P20: =IF(O20>0,P19+7.48*Data!M36*(Data!B36-Data!B35)/1440,0) -> 0 | Q20: =IF(O20>0,Q19+7.48*(4*PI()*(E$16/1440)*Data!N36)*(Data!B36-Data!B35)/LN(0.56146/((Data!P36^2*'C&J'!E$15)/(4*('C&J'!E$16/1440)*O20))),0) -> 0 | R20: 0 | T20: =Data!L36 -> 0 | U20: =Data!M36/Data!N36 ->  | W20: 11 | X20: 50.18 | Y20: =4*PI()*E$18/LN(0.56146/(Data!V$24^2*'C&J'!E$15/(4*'C&J'!E$18*'C&J'!X20/1440))) -> 0.1231380647 | Z20: 54.18
N21: 13 | O21: =IF(Data!L37>=E$9,Data!L37-E$10,0) -> 0 | P21: =IF(O21>0,P20+7.48*Data!M37*(Data!B37-Data!B36)/1440,0) -> 0 | Q21: =IF(O21>0,Q20+7.48*(4*PI()*(E$16/1440)*Data!N37)*(Data!B37-Data!B36)/LN(0.56146/((Data!P37^2*'C&J'!E$15)/(4*('C&J'!E$16/1440)*O21))),0) -> 0 | R21: 0 | T21: =Data!L37 -> 0 | U21: =Data!M37/Data!N37 ->  | W21: 12 | X21: 54.56 | Y21: =4*PI()*E$18/LN(0.56146/(Data!V$24^2*'C&J'!E$15/(4*'C&J'!E$18*'C&J'!X21/1440))) -> 0.1206643683 | Z21: 58.56
N22: 14 | O22: =IF(Data!L38>=E$9,Data!L38-E$10,0) -> 0 | P22: =IF(O22>0,P21+7.48*Data!M38*(Data!B38-Data!B37)/1440,0) -> 0 | Q22: =IF(O22>0,Q21+7.48*(4*PI()*(E$16/1440)*Data!N38)*(Data!B38-Data!B37)/LN(0.56146/((Data!P38^2*'C&J'!E$15)/(4*('C&J'!E$16/1440)*O22))),0) -> 0 | R22: 0 | T22: =Data!L38 -> 0 | U22: =Data!M38/Data!N38 ->  | W22: 13 | X22: 58.94 | Y22: =4*PI()*E$18/LN(0.56146/(Data!V$24^2*'C&J'!E$15/(4*'C&J'!E$18*'C&J'!X22/1440))) -> 0.1184683523 | Z22: 62.94
N23: 15 | O23: =IF(Data!L39>=E$9,Data!L39-E$10,0) -> 0 | P23: =IF(O23>0,P22+7.48*Data!M39*(Data!B39-Data!B38)/1440,0) -> 0 | Q23: =IF(O23>0,Q22+7.48*(4*PI()*(E$16/1440)*Data!N39)*(Data!B39-Data!B38)/LN(0.56146/((Data!P39^2*'C&J'!E$15)/(4*('C&J'!E$16/1440)*O23))),0) -> 0 | R23: 0 | T23: =Data!L39 -> 0 | U23: =Data!M39/Data!N39 ->  | W23: 14 | X23: 63.32 | Y23: =4*PI()*E$18/LN(0.56146/(Data!V$24^2*'C&J'!E$15/(4*'C&J'!E$18*'C&J'!X23/1440))) -> 0.1165001729 | Z23: 67.32
N24: 16 | O24: =IF(Data!L40>=E$9,Data!L40-E$10,0) -> 0 | P24: =IF(O24>0,P23+7.48*Data!M40*(Data!B40-Data!B39)/1440,0) -> 0 | Q24: =IF(O24>0,Q23+7.48*(4*PI()*(E$16/1440)*Data!N40)*(Data!B40-Data!B39)/LN(0.56146/((Data!P40^2*'C&J'!E$15)/(4*('C&J'!E$16/1440)*O24))),0) -> 0 | R24: 0 | T24: =Data!L40 -> 0 | U24: =Data!M40/Data!N40 ->  | W24: 15 | X24: 67.7 | Y24: =4*PI()*E$18/LN(0.56146/(Data!V$24^2*'C&J'!E$15/(4*'C&J'!E$18*'C&J'!X24/1440))) -> 0.1147217669 | Z24: 71.7
N25: 17 | O25: =IF(Data!L41>=E$9,Data!L41-E$10,0) -> 0 | P25: =IF(O25>0,P24+7.48*Data!M41*(Data!B41-Data!B40)/1440,0) -> 0 | Q25: =IF(O25>0,Q24+7.48*(4*PI()*(E$16/1440)*Data!N41)*(Data!B41-Data!B40)/LN(0.56146/((Data!P41^2*'C&J'!E$15)/(4*('C&J'!E$16/1440)*O25))),0) -> 0 | R25: 0 | T25: =Data!L41 -> 0 | U25: =Data!M41/Data!N41 ->  | W25: 16 | X25: 72.08 | Y25: =4*PI()*E$18/LN(0.56146/(Data!V$24^2*'C&J'!E$15/(4*'C&J'!E$18*'C&J'!X25/1440))) -> 0.1131034885 | Z25: 76.08
N26: 18 | O26: =IF(Data!L42>=E$9,Data!L42-E$10,0) -> 0 | P26: =IF(O26>0,P25+7.48*Data!M42*(Data!B42-Data!B41)/1440,0) -> 0 | Q26: =IF(O26>0,Q25+7.48*(4*PI()*(E$16/1440)*Data!N42)*(Data!B42-Data!B41)/LN(0.56146/((Data!P42^2*'C&J'!E$15)/(4*('C&J'!E$16/1440)*O26))),0) -> 0 | R26: 0 | T26: =Data!L42 -> 0 | U26: =Data!M42/Data!N42 ->  | W26: 17 | X26: 76.46 | Y26: =4*PI()*E$18/LN(0.56146/(Data!V$24^2*'C&J'!E$15/(4*'C&J'!E$18*'C&J'!X26/1440))) -> 0.1116218509 | Z26: 80.46
N27: 19 | O27: =IF(Data!L43>=E$9,Data!L43-E$10,0) -> 0 | P27: =IF(O27>0,P26+7.48*Data!M43*(Data!B43-Data!B42)/1440,0) -> 0 | Q27: =IF(O27>0,Q26+7.48*(4*PI()*(E$16/1440)*Data!N43)*(Data!B43-Data!B42)/LN(0.56146/((Data!P43^2*'C&J'!E$15)/(4*('C&J'!E$16/1440)*O27))),0) -> 0 | R27: 0 | T27: =Data!L43 -> 0 | U27: =Data!M43/Data!N43 ->  | W27: 18 | X27: 80.84 | Y27: =4*PI()*E$18/LN(0.56146/(Data!V$24^2*'C&J'!E$15/(4*'C&J'!E$18*'C&J'!X27/1440))) -> 0.1102579683 | Z27: 84.84
N28: 20 | O28: =IF(Data!L44>=E$9,Data!L44-E$10,0) -> 0 | P28: =IF(O28>0,P27+7.48*Data!M44*(Data!B44-Data!B43)/1440,0) -> 0 | Q28: =IF(O28>0,Q27+7.48*(4*PI()*(E$16/1440)*Data!N44)*(Data!B44-Data!B43)/LN(0.56146/((Data!P44^2*'C&J'!E$15)/(4*('C&J'!E$16/1440)*O28))),0) -> 0 | R28: 0 | T28: =Data!L44 -> 0 | U28: =Data!M44/Data!N44 ->  | W28: 19 | X28: 85.22 | Y28: =4*PI()*E$18/LN(0.56146/(Data!V$24^2*'C&J'!E$15/(4*'C&J'!E$18*'C&J'!X28/1440))) -> 0.1089964536 | Z28: 89.22
N29: 21 | O29: =IF(Data!L45>=E$9,Data!L45-E$10,0) -> 0 | P29: =IF(O29>0,P28+7.48*Data!M45*(Data!B45-Data!B44)/1440,0) -> 0 | Q29: =IF(O29>0,Q28+7.48*(4*PI()*(E$16/1440)*Data!N45)*(Data!B45-Data!B44)/LN(0.56146/((Data!P45^2*'C&J'!E$15)/(4*('C&J'!E$16/1440)*O29))),0) -> 0 | R29: 0 | T29: =Data!L45 -> 0 | U29: =Data!M45/Data!N45 ->  | W29: 20 | X29: 89.6 | Y29: =4*PI()*E$18/LN(0.56146/(Data!V$24^2*'C&J'!E$15/(4*'C&J'!E$18*'C&J'!X29/1440))) -> 0.1078246243 | Z29: 93.6
N30: 22 | O30: =IF(Data!L46>=E$9,Data!L46-E$10,0) -> 0 | P30: =IF(O30>0,P29+7.48*Data!M46*(Data!B46-Data!B45)/1440,0) -> 0 | Q30: =IF(O30>0,Q29+7.48*(4*PI()*(E$16/1440)*Data!N46)*(Data!B46-Data!B45)/LN(0.56146/((Data!P46^2*'C&J'!E$15)/(4*('C&J'!E$16/1440)*O30))),0) -> 0 | R30: 0 | T30: =Data!L46 -> 0 | U30: =Data!M46/Data!N46 ->  | W30: 21 | X30: 93.98 | Y30: =4*PI()*E$18/LN(0.56146/(Data!V$24^2*'C&J'!E$15/(4*'C&J'!E$18*'C&J'!X30/1440))) -> 0.1067319176 | Z30: 97.98
N31: 23 | O31: =IF(Data!L47>=E$9,Data!L47-E$10,0) -> 0 | P31: =IF(O31>0,P30+7.48*Data!M47*(Data!B47-Data!B46)/1440,0) -> 0 | Q31: =IF(O31>0,Q30+7.48*(4*PI()*(E$16/1440)*Data!N47)*(Data!B47-Data!B46)/LN(0.56146/((Data!P47^2*'C&J'!E$15)/(4*('C&J'!E$16/1440)*O31))),0) -> 0 | R31: 0 | T31: =Data!L47 -> 0 | U31: =Data!M47/Data!N47 ->  | W31: 22 | X31: 98.36 | Y31: =4*PI()*E$18/LN(0.56146/(Data!V$24^2*'C&J'!E$15/(4*'C&J'!E$18*'C&J'!X31/1440))) -> 0.105709454 | Z31: 102.36
N32: 24 | O32: =IF(Data!L48>=E$9,Data!L48-E$10,0) -> 0 | P32: =IF(O32>0,P31+7.48*Data!M48*(Data!B48-Data!B47)/1440,0) -> 0 | Q32: =IF(O32>0,Q31+7.48*(4*PI()*(E$16/1440)*Data!N48)*(Data!B48-Data!B47)/LN(0.56146/((Data!P48^2*'C&J'!E$15)/(4*('C&J'!E$16/1440)*O32))),0) -> 0 | R32: 0 | T32: =Data!L48 -> 0 | U32: =Data!M48/Data!N48 ->  | W32: 23 | X32: 102.74 | Y32: =4*PI()*E$18/LN(0.56146/(Data!V$24^2*'C&J'!E$15/(4*'C&J'!E$18*'C&J'!X32/1440))) -> 0.1047497054 | Z32: 106.74
N33: 25 | O33: =IF(Data!L49>=E$9,Data!L49-E$10,0) -> 0 | P33: =IF(O33>0,P32+7.48*Data!M49*(Data!B49-Data!B48)/1440,0) -> 0 | Q33: =IF(O33>0,Q32+7.48*(4*PI()*(E$16/1440)*Data!N49)*(Data!B49-Data!B48)/LN(0.56146/((Data!P49^2*'C&J'!E$15)/(4*('C&J'!E$16/1440)*O33))),0) -> 0 | R33: 0 | T33: =Data!L49 -> 0 | U33: =Data!M49/Data!N49 ->  | W33: 24 | X33: 107.12 | Y33: =4*PI()*E$18/LN(0.56146/(Data!V$24^2*'C&J'!E$15/(4*'C&J'!E$18*'C&J'!X33/1440))) -> 0.1038462405 | Z33: 111.12
N34: 26 | O34: =IF(Data!L50>=E$9,Data!L50-E$10,0) -> 0 | P34: =IF(O34>0,P33+7.48*Data!M50*(Data!B50-Data!B49)/1440,0) -> 0 | Q34: =IF(O34>0,Q33+7.48*(4*PI()*(E$16/1440)*Data!N50)*(Data!B50-Data!B49)/LN(0.56146/((Data!P50^2*'C&J'!E$15)/(4*('C&J'!E$16/1440)*O34))),0) -> 0 | R34: 0 | T34: =Data!L50 -> 0 | U34: =Data!M50/Data!N50 ->  | W34: 25 | X34: 111.5 | Y34: =4*PI()*E$18/LN(0.56146/(Data!V$24^2*'C&J'!E$15/(4*'C&J'!E$18*'C&J'!X34/1440))) -> 0.1029935269 | Z34: 115.5
N35: 27 | O35: =IF(Data!L51>=E$9,Data!L51-E$10,0) -> 0 | P35: =IF(O35>0,P34+7.48*Data!M51*(Data!B51-Data!B50)/1440,0) -> 0 | Q35: =IF(O35>0,Q34+7.48*(4*PI()*(E$16/1440)*Data!N51)*(Data!B51-Data!B50)/LN(0.56146/((Data!P51^2*'C&J'!E$15)/(4*('C&J'!E$16/1440)*O35))),0) -> 0 | R35: 0 | T35: =Data!L51 -> 0 | U35: =Data!M51/Data!N51 ->  | W35: 26 | X35: 115.88 | Y35: =4*PI()*E$18/LN(0.56146/(Data!V$24^2*'C&J'!E$15/(4*'C&J'!E$18*'C&J'!X35/1440))) -> 0.1021867744 | Z35: 119.88
N36: 28 | O36: =IF(Data!L52>=E$9,Data!L52-E$10,0) -> 0 | P36: =IF(O36>0,P35+7.48*Data!M52*(Data!B52-Data!B51)/1440,0) -> 0 | Q36: =IF(O36>0,Q35+7.48*(4*PI()*(E$16/1440)*Data!N52)*(Data!B52-Data!B51)/LN(0.56146/((Data!P52^2*'C&J'!E$15)/(4*('C&J'!E$16/1440)*O36))),0) -> 0 | R36: 0 | T36: =Data!L52 -> 0 | U36: =Data!M52/Data!N52 ->  | W36: 27 | X36: 120.26 | Y36: =4*PI()*E$18/LN(0.56146/(Data!V$24^2*'C&J'!E$15/(4*'C&J'!E$18*'C&J'!X36/1440))) -> 0.1014218112 | Z36: 124.26
N37: 29 | O37: =IF(Data!L53>=E$9,Data!L53-E$10,0) -> 0 | P37: =IF(O37>0,P36+7.48*Data!M53*(Data!B53-Data!B52)/1440,0) -> 0 | Q37: =IF(O37>0,Q36+7.48*(4*PI()*(E$16/1440)*Data!N53)*(Data!B53-Data!B52)/LN(0.56146/((Data!P53^2*'C&J'!E$15)/(4*('C&J'!E$16/1440)*O37))),0) -> 0 | R37: 0 | T37: =Data!L53 -> 0 | U37: =Data!M53/Data!N53 ->  | W37: 28 | X37: 124.64 | Y37: =4*PI()*E$18/LN(0.56146/(Data!V$24^2*'C&J'!E$15/(4*'C&J'!E$18*'C&J'!X37/1440))) -> 0.1006949843 | Z37: 128.64
N38: 30 | O38: =IF(Data!L54>=E$9,Data!L54-E$10,0) -> 0 | P38: =IF(O38>0,P37+7.48*Data!M54*(Data!B54-Data!B53)/1440,0) -> 0 | Q38: =IF(O38>0,Q37+7.48*(4*PI()*(E$16/1440)*Data!N54)*(Data!B54-Data!B53)/LN(0.56146/((Data!P54^2*'C&J'!E$15)/(4*('C&J'!E$16/1440)*O38))),0) -> 0 | R38: 0 | T38: =Data!L54 -> 0 | U38: =Data!M54/Data!N54 ->  | W38: 29 | X38: 129.02 | Y38: =4*PI()*E$18/LN(0.56146/(Data!V$24^2*'C&J'!E$15/(4*'C&J'!E$18*'C&J'!X38/1440))) -> 0.100003079 | Z38: 133.02
N39: 31 | O39: =IF(Data!L55>=E$9,Data!L55-E$10,0) -> 0 | P39: =IF(O39>0,P38+7.48*Data!M55*(Data!B55-Data!B54)/1440,0) -> 0 | Q39: =IF(O39>0,Q38+7.48*(4*PI()*(E$16/1440)*Data!N55)*(Data!B55-Data!B54)/LN(0.56146/((Data!P55^2*'C&J'!E$15)/(4*('C&J'!E$16/1440)*O39))),0) -> 0 | R39: 0 | T39: =Data!L55 -> 0 | U39: =Data!M55/Data!N55 ->  | W39: 30 | X39: 133.4 | Y39: =4*PI()*E$18/LN(0.56146/(Data!V$24^2*'C&J'!E$15/(4*'C&J'!E$18*'C&J'!X39/1440))) -> 0.09934325308 | Z39: 137.4
N40: 32 | O40: =IF(Data!L56>=E$9,Data!L56-E$10,0) -> 0 | P40: =IF(O40>0,P39+7.48*Data!M56*(Data!B56-Data!B55)/1440,0) -> 0 | Q40: =IF(O40>0,Q39+7.48*(4*PI()*(E$16/1440)*Data!N56)*(Data!B56-Data!B55)/LN(0.56146/((Data!P56^2*'C&J'!E$15)/(4*('C&J'!E$16/1440)*O40))),0) -> 0 | R40: 0 | T40: =Data!L56 -> 0 | U40: =Data!M56/Data!N56 ->  | W40: 31 | X40: 137.78 | Y40: =4*PI()*E$18/LN(0.56146/(Data!V$24^2*'C&J'!E$15/(4*'C&J'!E$18*'C&J'!X40/1440))) -> 0.09871298253 | Z40: 141.78
N41: 33 | O41: =IF(Data!L57>=E$9,Data!L57-E$10,0) -> 0 | P41: =IF(O41>0,P40+7.48*Data!M57*(Data!B57-Data!B56)/1440,0) -> 0 | Q41: =IF(O41>0,Q40+7.48*(4*PI()*(E$16/1440)*Data!N57)*(Data!B57-Data!B56)/LN(0.56146/((Data!P57^2*'C&J'!E$15)/(4*('C&J'!E$16/1440)*O41))),0) -> 0 | R41: 0 | T41: =Data!L57 -> 0 | U41: =Data!M57/Data!N57 ->  | W41: 32 | X41: 142.16 | Y41: =4*PI()*E$18/LN(0.56146/(Data!V$24^2*'C&J'!E$15/(4*'C&J'!E$18*'C&J'!X41/1440))) -> 0.09811001717 | Z41: 146.16
N42: 34 | O42: =IF(Data!L58>=E$9,Data!L58-E$10,0) -> 0 | P42: =IF(O42>0,P41+7.48*Data!M58*(Data!B58-Data!B57)/1440,0) -> 0 | Q42: =IF(O42>0,Q41+7.48*(4*PI()*(E$16/1440)*Data!N58)*(Data!B58-Data!B57)/LN(0.56146/((Data!P58^2*'C&J'!E$15)/(4*('C&J'!E$16/1440)*O42))),0) -> 0 | R42: 0 | T42: =Data!L58 -> 0 | U42: =Data!M58/Data!N58 ->  | W42: 33 | X42: 146.54 | Y42: =4*PI()*E$18/LN(0.56146/(Data!V$24^2*'C&J'!E$15/(4*'C&J'!E$18*'C&J'!X42/1440))) -> 0.0975323432 | Z42: 150.54
N43: 35 | O43: =IF(Data!L59>=E$9,Data!L59-E$10,0) -> 0 | P43: =IF(O43>0,P42+7.48*Data!M59*(Data!B59-Data!B58)/1440,0) -> 0 | Q43: =IF(O43>0,Q42+7.48*(4*PI()*(E$16/1440)*Data!N59)*(Data!B59-Data!B58)/LN(0.56146/((Data!P59^2*'C&J'!E$15)/(4*('C&J'!E$16/1440)*O43))),0) -> 0 | R43: 0 | T43: =Data!L59 -> 0 | U43: =Data!M59/Data!N59 ->  | W43: 34 | X43: 150.92 | Y43: =4*PI()*E$18/LN(0.56146/(Data!V$24^2*'C&J'!E$15/(4*'C&J'!E$18*'C&J'!X43/1440))) -> 0.09697815199 | Z43: 154.92
N44: 36 | O44: =IF(Data!L60>=E$9,Data!L60-E$10,0) -> 0 | P44: =IF(O44>0,P43+7.48*Data!M60*(Data!B60-Data!B59)/1440,0) -> 0 | Q44: =IF(O44>0,Q43+7.48*(4*PI()*(E$16/1440)*Data!N60)*(Data!B60-Data!B59)/LN(0.56146/((Data!P60^2*'C&J'!E$15)/(4*('C&J'!E$16/1440)*O44))),0) -> 0 | R44: 0 | T44: =Data!L60 -> 0 | U44: =Data!M60/Data!N60 ->  | W44: 35 | X44: 155.3 | Y44: =4*PI()*E$18/LN(0.56146/(Data!V$24^2*'C&J'!E$15/(4*'C&J'!E$18*'C&J'!X44/1440))) -> 0.09644581383 | Z44: 159.3
N45: 37 | O45: =IF(Data!L61>=E$9,Data!L61-E$10,0) -> 0 | P45: =IF(O45>0,P44+7.48*Data!M61*(Data!B61-Data!B60)/1440,0) -> 0 | Q45: =IF(O45>0,Q44+7.48*(4*PI()*(E$16/1440)*Data!N61)*(Data!B61-Data!B60)/LN(0.56146/((Data!P61^2*'C&J'!E$15)/(4*('C&J'!E$16/1440)*O45))),0) -> 0 | R45: 0 | T45: =Data!L61 -> 0 | U45: =Data!M61/Data!N61 ->  | W45: 36 | X45: 159.68 | Y45: =4*PI()*E$18/LN(0.56146/(Data!V$24^2*'C&J'!E$15/(4*'C&J'!E$18*'C&J'!X45/1440))) -> 0.09593385557 | Z45: 163.68
N46: 38 | O46: =IF(Data!L62>=E$9,Data!L62-E$10,0) -> 0 | P46: =IF(O46>0,P45+7.48*Data!M62*(Data!B62-Data!B61)/1440,0) -> 0 | Q46: =IF(O46>0,Q45+7.48*(4*PI()*(E$16/1440)*Data!N62)*(Data!B62-Data!B61)/LN(0.56146/((Data!P62^2*'C&J'!E$15)/(4*('C&J'!E$16/1440)*O46))),0) -> 0 | R46: 0 | T46: =Data!L62 -> 0 | U46: =Data!M62/Data!N62 ->  | W46: 37 | X46: 164.06 | Y46: =4*PI()*E$18/LN(0.56146/(Data!V$24^2*'C&J'!E$15/(4*'C&J'!E$18*'C&J'!X46/1440))) -> 0.09544094174 | Z46: 168.06
N47: 39 | O47: =IF(Data!L63>=E$9,Data!L63-E$10,0) -> 0 | P47: =IF(O47>0,P46+7.48*Data!M63*(Data!B63-Data!B62)/1440,0) -> 0 | Q47: =IF(O47>0,Q46+7.48*(4*PI()*(E$16/1440)*Data!N63)*(Data!B63-Data!B62)/LN(0.56146/((Data!P63^2*'C&J'!E$15)/(4*('C&J'!E$16/1440)*O47))),0) -> 0 | R47: 0 | T47: =Data!L63 -> 0 | U47: =Data!M63/Data!N63 ->  | W47: 38 | X47: 168.44 | Y47: =4*PI()*E$18/LN(0.56146/(Data!V$24^2*'C&J'!E$15/(4*'C&J'!E$18*'C&J'!X47/1440))) -> 0.09496585825 | Z47: 172.44
N48: 40 | O48: =IF(Data!L64>=E$9,Data!L64-E$10,0) -> 0 | P48: =IF(O48>0,P47+7.48*Data!M64*(Data!B64-Data!B63)/1440,0) -> 0 | Q48: =IF(O48>0,Q47+7.48*(4*PI()*(E$16/1440)*Data!N64)*(Data!B64-Data!B63)/LN(0.56146/((Data!P64^2*'C&J'!E$15)/(4*('C&J'!E$16/1440)*O48))),0) -> 0 | R48: 0 | T48: =Data!L64 -> 0 | U48: =Data!M64/Data!N64 ->  | W48: 39 | X48: 172.82 | Y48: =4*PI()*E$18/LN(0.56146/(Data!V$24^2*'C&J'!E$15/(4*'C&J'!E$18*'C&J'!X48/1440))) -> 0.0945074985 | Z48: 176.82
J49: Height | N49: 41 | O49: =IF(Data!L65>=E$9,Data!L65-E$10,0) -> 0 | P49: =IF(O49>0,P48+7.48*Data!M65*(Data!B65-Data!B64)/1440,0) -> 0 | Q49: =IF(O49>0,Q48+7.48*(4*PI()*(E$16/1440)*Data!N65)*(Data!B65-Data!B64)/LN(0.56146/((Data!P65^2*'C&J'!E$15)/(4*('C&J'!E$16/1440)*O49))),0) -> 0 | R49: 0 | T49: =Data!L65 -> 0 | U49: =Data!M65/Data!N65 ->  | W49: 40 | X49: 177.2 | Y49: =4*PI()*E$18/LN(0.56146/(Data!V$24^2*'C&J'!E$15/(4*'C&J'!E$18*'C&J'!X49/1440))) -> 0.09406485132 | Z49: 181.2
J50: 70 | N50: 42 | O50: =IF(Data!L66>=E$9,Data!L66-E$10,0) -> 0 | P50: =IF(O50>0,P49+7.48*Data!M66*(Data!B66-Data!B65)/1440,0) -> 0 | Q50: =IF(O50>0,Q49+7.48*(4*PI()*(E$16/1440)*Data!N66)*(Data!B66-Data!B65)/LN(0.56146/((Data!P66^2*'C&J'!E$15)/(4*('C&J'!E$16/1440)*O50))),0) -> 0 | R50: 0 | T50: =Data!L66 -> 0 | U50: =Data!M66/Data!N66 ->  | W50: 41 | X50: 181.58 | Y50: =4*PI()*E$18/LN(0.56146/(Data!V$24^2*'C&J'!E$15/(4*'C&J'!E$18*'C&J'!X50/1440))) -> 0.09363699059 | Z50: 185.58
N51: 43 | O51: =IF(Data!L67>=E$9,Data!L67-E$10,0) -> 0 | P51: =IF(O51>0,P50+7.48*Data!M67*(Data!B67-Data!B66)/1440,0) -> 0 | Q51: =IF(O51>0,Q50+7.48*(4*PI()*(E$16/1440)*Data!N67)*(Data!B67-Data!B66)/LN(0.56146/((Data!P67^2*'C&J'!E$15)/(4*('C&J'!E$16/1440)*O51))),0) -> 0 | R51: 0 | T51: =Data!L67 -> 0 | U51: =Data!M67/Data!N67 ->  | W51: 42 | X51: 185.96 | Y51: =4*PI()*E$18/LN(0.56146/(Data!V$24^2*'C&J'!E$15/(4*'C&J'!E$18*'C&J'!X51/1440))) -> 0.09322306619 | Z51: 189.96
N52: 44 | O52: =IF(Data!L68>=E$9,Data!L68-E$10,0) -> 0 | P52: =IF(O52>0,P51+7.48*Data!M68*(Data!B68-Data!B67)/1440,0) -> 0 | Q52: =IF(O52>0,Q51+7.48*(4*PI()*(E$16/1440)*Data!N68)*(Data!B68-Data!B67)/LN(0.56146/((Data!P68^2*'C&J'!E$15)/(4*('C&J'!E$16/1440)*O52))),0) -> 0 | R52: 0 | T52: =Data!L68 -> 0 | U52: =Data!M68/Data!N68 ->  | W52: 43 | X52: 190.34 | Y52: =4*PI()*E$18/LN(0.56146/(Data!V$24^2*'C&J'!E$15/(4*'C&J'!E$18*'C&J'!X52/1440))) -> 0.09282229607 | Z52: 194.34
N53: 45 | O53: =IF(Data!L69>=E$9,Data!L69-E$10,0) -> 0 | P53: =IF(O53>0,P52+7.48*Data!M69*(Data!B69-Data!B68)/1440,0) -> 0 | Q53: =IF(O53>0,Q52+7.48*(4*PI()*(E$16/1440)*Data!N69)*(Data!B69-Data!B68)/LN(0.56146/((Data!P69^2*'C&J'!E$15)/(4*('C&J'!E$16/1440)*O53))),0) -> 0 | R53: 0 | T53: =Data!L69 -> 0 | U53: =Data!M69/Data!N69 ->  | W53: 44 | X53: 194.72 | Y53: =4*PI()*E$18/LN(0.56146/(Data!V$24^2*'C&J'!E$15/(4*'C&J'!E$18*'C&J'!X53/1440))) -> 0.09243395936 | Z53: 198.72
N54: 46 | O54: =IF(Data!L70>=E$9,Data!L70-E$10,0) -> 0 | P54: =IF(O54>0,P53+7.48*Data!M70*(Data!B70-Data!B69)/1440,0) -> 0 | Q54: =IF(O54>0,Q53+7.48*(4*PI()*(E$16/1440)*Data!N70)*(Data!B70-Data!B69)/LN(0.56146/((Data!P70^2*'C&J'!E$15)/(4*('C&J'!E$16/1440)*O54))),0) -> 0 | R54: 0 | T54: =Data!L70 -> 0 | U54: =Data!M70/Data!N70 ->  | W54: 45 | X54: 199.1 | Y54: =4*PI()*E$18/LN(0.56146/(Data!V$24^2*'C&J'!E$15/(4*'C&J'!E$18*'C&J'!X54/1440))) -> 0.09205739033 | Z54: 203.1
N55: 47 | O55: =IF(Data!L71>=E$9,Data!L71-E$10,0) -> 0 | P55: =IF(O55>0,P54+7.48*Data!M71*(Data!B71-Data!B70)/1440,0) -> 0 | Q55: =IF(O55>0,Q54+7.48*(4*PI()*(E$16/1440)*Data!N71)*(Data!B71-Data!B70)/LN(0.56146/((Data!P71^2*'C&J'!E$15)/(4*('C&J'!E$16/1440)*O55))),0) -> 0 | R55: 0 | T55: =Data!L71 -> 0 | U55: =Data!M71/Data!N71 ->  | W55: 46 | X55: 203.48 | Y55: =4*PI()*E$18/LN(0.56146/(Data!V$24^2*'C&J'!E$15/(4*'C&J'!E$18*'C&J'!X55/1440))) -> 0.09169197297 | Z55: 207.48
N56: 48 | O56: =IF(Data!L72>=E$9,Data!L72-E$10,0) -> 0 | P56: =IF(O56>0,P55+7.48*Data!M72*(Data!B72-Data!B71)/1440,0) -> 0 | Q56: =IF(O56>0,Q55+7.48*(4*PI()*(E$16/1440)*Data!N72)*(Data!B72-Data!B71)/LN(0.56146/((Data!P72^2*'C&J'!E$15)/(4*('C&J'!E$16/1440)*O56))),0) -> 0 | R56: 0 | T56: =Data!L72 -> 0 | U56: =Data!M72/Data!N72 ->  | W56: 47 | X56: 207.86 | Y56: =4*PI()*E$18/LN(0.56146/(Data!V$24^2*'C&J'!E$15/(4*'C&J'!E$18*'C&J'!X56/1440))) -> 0.09133713636 | Z56: 211.86
N57: 49 | O57: =IF(Data!L73>=E$9,Data!L73-E$10,0) -> 0 | P57: =IF(O57>0,P56+7.48*Data!M73*(Data!B73-Data!B72)/1440,0) -> 0 | Q57: =IF(O57>0,Q56+7.48*(4*PI()*(E$16/1440)*Data!N73)*(Data!B73-Data!B72)/LN(0.56146/((Data!P73^2*'C&J'!E$15)/(4*('C&J'!E$16/1440)*O57))),0) -> 0 | R57: 0 | T57: =Data!L73 -> 0 | U57: =Data!M73/Data!N73 ->  | W57: 48 | X57: 212.24 | Y57: =4*PI()*E$18/LN(0.56146/(Data!V$24^2*'C&J'!E$15/(4*'C&J'!E$18*'C&J'!X57/1440))) -> 0.09099235039 | Z57: 216.24
N58: 50 | O58: =IF(Data!L74>=E$9,Data!L74-E$10,0) -> 0 | P58: =IF(O58>0,P57+7.48*Data!M74*(Data!B74-Data!B73)/1440,0) -> 0 | Q58: =IF(O58>0,Q57+7.48*(4*PI()*(E$16/1440)*Data!N74)*(Data!B74-Data!B73)/LN(0.56146/((Data!P74^2*'C&J'!E$15)/(4*('C&J'!E$16/1440)*O58))),0) -> 0 | R58: 0 | T58: =Data!L74 -> 0 | U58: =Data!M74/Data!N74 ->  | W58: 49 | X58: 216.62 | Y58: =4*PI()*E$18/LN(0.56146/(Data!V$24^2*'C&J'!E$15/(4*'C&J'!E$18*'C&J'!X58/1440))) -> 0.09065712213 | Z58: 220.62
T59: =Data!L75 -> 0 | U59: =Data!M75/Data!N75 ->  | W59: 50 | X59: 221 | Y59: =4*PI()*E$18/LN(0.56146/(Data!V$24^2*'C&J'!E$15/(4*'C&J'!E$18*'C&J'!X59/1440))) -> 0.09033099247 | Z59: 225
T60: =Data!L76 -> 0 | U60: =Data!M76/Data!N76 -> 
T61: =Data!L77 -> 0 | U61: =Data!M77/Data!N77 -> 
T62: =Data!L78 -> 0 | U62: =Data!M78/Data!N78 -> 
T63: =Data!L79 -> 0 | U63: =Data!M79/Data!N79 -> 
T64: =Data!L80 -> 0 | U64: =Data!M80/Data!N80 -> 
T65: =Data!L81 -> 0 | U65: =Data!M81/Data!N81 -> 
T66: =Data!L82 -> 0 | U66: =Data!M82/Data!N82 -> 

Sheet CB&P
A1: Cooper, Bredehoeft and Papadopulos (1967)
A2: Well Designation: | C2: =IF(Data!B1 > 0,Data!B1,"") -> MW16 | P2: e | Q2: 1e-06
A3: Date: | C3: =IF(Data!B2 > 0,Data!B2,"") -> 2021-11-09
B5: Enter early time cut-off for least-squares model fit
C6: Timecut (min): | E6: 7 | F6: <- Enter or change values here | N6: Count | O6: Time | P6: H/Ho | Q6: G (a,b,e) | R6: SE | X6: Time | Y6: H/Ho
B7: Initial Drawdown sn (ft): | E7: 0.33 | O7: (min) | T7: Index | U7: Time (min) | V7: G( ) | X7: (min)
N8: =IF(O8>0,1,0) -> 0 | O8: =IF(Data!B24>E$6,Data!B24-E$6,0) -> 0 | P8: =IF(N8>0,Data!J24/'CB&P'!E$7,0) -> 0 | Q8: =IF(N8>0,G(E$14,((-J$20)*'CB&P'!E$13/1440)*'CB&P'!O8/Data!V$24^2,'CB&P'!Q$2),0) -> 0 | R8: =N8*(P8-Q8)^2 -> 0 | T8: 0 | U8: =EXP(LN(J$15)+(LN(J$16)-LN(J$15))*T8/100) -> 3 | V8: =G('CB&P'!E$14,((-J$20)*'CB&P'!E$13/1440)*'CB&P'!U8/Data!V$24^2,0.00001) -> 0.9812470614 | X8: =IF(N8>0,O8,NA()) ->  | Y8: =IF(N8>0,P8,NA()) -> 
B9: Trial Sn: | E9: d | F9: <-- Enter d for default | N9: =IF(O9>0,1,0) -> 0 | O9: =IF(Data!B25>E$6,Data!B25-E$6,0) -> 0 | P9: =IF(N9>0,Data!J25/'CB&P'!E$7,0) -> 0 | Q9: =IF(N9>0,G(E$14,((-J$20)*'CB&P'!E$13/1440)*'CB&P'!O9/Data!V$24^2,'CB&P'!Q$2),0) -> 0 | R9: =N9*(P9-Q9)^2 -> 0 | T9: 1 | U9: 3.143413702 | V9: =G('CB&P'!E$14,((-J$20)*'CB&P'!E$13/1440)*'CB&P'!U9/Data!V$24^2,0.00001) -> 0.9806899257 | X9: =IF(N9>0,O9,NA()) ->  | Y9: =IF(N9>0,P9,NA()) -> 
N10: 1 | O10: =IF(Data!B26>E$6,Data!B26-E$6,0) -> 8 | P10: =IF(N10>0,Data!J26/'CB&P'!E$7,0) -> 0.9393939394 | Q10: =IF(N10>0,G(E$14,((-J$20)*'CB&P'!E$13/1440)*'CB&P'!O10/Data!V$24^2,'CB&P'!Q$2),0) -> 0.9648757447 | R10: 0.0006493224031 | T10: 2 | U10: 3.293683235 | V10: =G('CB&P'!E$14,((-J$20)*'CB&P'!E$13/1440)*'CB&P'!U10/Data!V$24^2,0.00001) -> 0.9801149723 | X10: 8 | Y10: 0.9393939394
B11: Root-Mean-Square Error: | E11: =SQRT(SUM(R8:R48)) -> 0.117303786 | F11: <-- Minimize this using "Solver" | N11: 1 | O11: =IF(Data!B27>E$6,Data!B27-E$6,0) -> 54 | P11: =IF(N11>0,Data!J27/'CB&P'!E$7,0) -> 0.8484848485 | Q11: =IF(N11>0,G(E$14,((-J$20)*'CB&P'!E$13/1440)*'CB&P'!O11/Data!V$24^2,'CB&P'!Q$2),0) -> 0.8729099853 | R11: 0.0005965873107 | T11: 3 | U11: 3.451136337 | V11: =G('CB&P'!E$14,((-J$20)*'CB&P'!E$13/1440)*'CB&P'!U11/Data!V$24^2,0.00001) -> 0.9795216225 | X11: 54 | Y11: 0.8484848485
N12: 1 | O12: =IF(Data!B28>E$6,Data!B28-E$6,0) -> 114 | P12: =IF(N12>0,Data!J28/'CB&P'!E$7,0) -> 0.7878787879 | Q12: =IF(N12>0,G(E$14,((-J$20)*'CB&P'!E$13/1440)*'CB&P'!O12/Data!V$24^2,'CB&P'!Q$2),0) -> 0.7892475603 | R12: 1.873538033e-06 | T12: 4 | U12: 3.616116417 | V12: =G('CB&P'!E$14,((-J$20)*'CB&P'!E$13/1440)*'CB&P'!U12/Data!V$24^2,0.00001) -> 0.9789092743 | X12: 114 | Y12: 0.7878787879
B13: Trial Tn (ft2/d): | E13: 0.06 | F13: <-- By changing Tn through "Solver" | N13: 1 | O13: =IF(Data!B29>E$6,Data!B29-E$6,0) -> 294 | P13: =IF(N13>0,Data!J29/'CB&P'!E$7,0) -> 0.7272727273 | Q13: =IF(N13>0,G(E$14,((-J$20)*'CB&P'!E$13/1440)*'CB&P'!O13/Data!V$24^2,'CB&P'!Q$2),0) -> 0.6154139102 | R13: 0.01251239496 | T13: 5 | U13: 3.788983298 | V13: =G('CB&P'!E$14,((-J$20)*'CB&P'!E$13/1440)*'CB&P'!U13/Data!V$24^2,0.00001) -> 0.9782773015 | X13: 294 | Y13: 0.7272727273
E14: =IF(E9="d",0.025*SQRT(E13),E9) -> 0.006123724357 | F14: <-- Working Sn | H14: Add constraint Tn > 0.00001 | N14: 0 | O14: =IF(Data!B30>E$6,Data!B30-E$6,0) -> 0 | P14: =IF(N14>0,Data!J30/'CB&P'!E$7,0) -> 0 | Q14: =IF(N14>0,G(E$14,((-J$20)*'CB&P'!E$13/1440)*'CB&P'!O14/Data!V$24^2,'CB&P'!Q$2),0) -> 0 | R14: 0 | T14: 6 | U14: 3.970114006 | V14: =G('CB&P'!E$14,((-J$20)*'CB&P'!E$13/1440)*'CB&P'!U14/Data!V$24^2,0.00001) -> 0.977625053
B15: Model Result: | D15: Tn (ft2/d) = | E15: =E13 -> 0.06 | I15: Tmin | J15: 3 | N15: 0 | O15: =IF(Data!B31>E$6,Data!B31-E$6,0) -> 0 | P15: =IF(N15>0,Data!J31/'CB&P'!E$7,0) -> 0 | Q15: =IF(N15>0,G(E$14,((-J$20)*'CB&P'!E$13/1440)*'CB&P'!O15/Data!V$24^2,'CB&P'!Q$2),0) -> 0 | R15: 0 | T15: 7 | U15: 4.159903589 | V15: =G('CB&P'!E$14,((-J$20)*'CB&P'!E$13/1440)*'CB&P'!U15/Data!V$24^2,0.00001) -> 0.9769518519
I16: Tmax | J16: 320 | N16: 0 | O16: =IF(Data!B32>E$6,Data!B32-E$6,0) -> 0 | P16: =IF(N16>0,Data!J32/'CB&P'!E$7,0) -> 0 | Q16: =IF(N16>0,G(E$14,((-J$20)*'CB&P'!E$13/1440)*'CB&P'!O16/Data!V$24^2,'CB&P'!Q$2),0) -> 0 | R16: 0 | T16: 8 | U16: 4.35876598 | V16: =G('CB&P'!E$14,((-J$20)*'CB&P'!E$13/1440)*'CB&P'!U16/Data!V$24^2,0.00001) -> 0.9762569905
N17: 0 | O17: =IF(Data!B33>E$6,Data!B33-E$6,0) -> 0 | P17: =IF(N17>0,Data!J33/'CB&P'!E$7,0) -> 0 | Q17: =IF(N17>0,G(E$14,((-J$20)*'CB&P'!E$13/1440)*'CB&P'!O17/Data!V$24^2,'CB&P'!Q$2),0) -> 0 | R17: 0 | T17: 9 | U17: 4.567134903 | V17: =G('CB&P'!E$14,((-J$20)*'CB&P'!E$13/1440)*'CB&P'!U17/Data!V$24^2,0.00001) -> 0.9755397487
N18: 0 | O18: =IF(Data!B34>E$6,Data!B34-E$6,0) -> 0 | P18: =IF(N18>0,Data!J34/'CB&P'!E$7,0) -> 0 | Q18: =IF(N18>0,G(E$14,((-J$20)*'CB&P'!E$13/1440)*'CB&P'!O18/Data!V$24^2,'CB&P'!Q$2),0) -> 0 | R18: 0 | T18: 10 | U18: 4.785464811 | V18: =G('CB&P'!E$14,((-J$20)*'CB&P'!E$13/1440)*'CB&P'!U18/Data!V$24^2,0.00001) -> 0.9747993615
J19: J-Ratio | N19: 0 | O19: =IF(Data!B35>E$6,Data!B35-E$6,0) -> 0 | P19: =IF(N19>0,Data!J35/'CB&P'!E$7,0) -> 0 | Q19: =IF(N19>0,G(E$14,((-J$20)*'CB&P'!E$13/1440)*'CB&P'!O19/Data!V$24^2,'CB&P'!Q$2),0) -> 0 | R19: 0 | T19: 11 | U19: 5.014231886 | V19: =G('CB&P'!E$14,((-J$20)*'CB&P'!E$13/1440)*'CB&P'!U19/Data!V$24^2,0.00001) -> 0.9740350414
J20: =Figures!U27 -> -0.5142857143 | N20: 0 | O20: =IF(Data!B36>E$6,Data!B36-E$6,0) -> 0 | P20: =IF(N20>0,Data!J36/'CB&P'!E$7,0) -> 0 | Q20: =IF(N20>0,G(E$14,((-J$20)*'CB&P'!E$13/1440)*'CB&P'!O20/Data!V$24^2,'CB&P'!Q$2),0) -> 0 | R20: 0 | T20: 12 | U20: 5.253935073 | V20: =G('CB&P'!E$14,((-J$20)*'CB&P'!E$13/1440)*'CB&P'!U20/Data!V$24^2,0.00001) -> 0.9732459719
N21: 0 | O21: =IF(Data!B37>E$6,Data!B37-E$6,0) -> 0 | P21: =IF(N21>0,Data!J37/'CB&P'!E$7,0) -> 0 | Q21: =IF(N21>0,G(E$14,((-J$20)*'CB&P'!E$13/1440)*'CB&P'!O21/Data!V$24^2,'CB&P'!Q$2),0) -> 0 | R21: 0 | T21: 13 | U21: 5.505097166 | V21: =G('CB&P'!E$14,((-J$20)*'CB&P'!E$13/1440)*'CB&P'!U21/Data!V$24^2,0.00001) -> 0.9724313055
N22: 0 | O22: =IF(Data!B38>E$6,Data!B38-E$6,0) -> 0 | P22: =IF(N22>0,Data!J38/'CB&P'!E$7,0) -> 0 | Q22: =IF(N22>0,G(E$14,((-J$20)*'CB&P'!E$13/1440)*'CB&P'!O22/Data!V$24^2,'CB&P'!Q$2),0) -> 0 | R22: 0 | T22: 14 | U22: 5.768265955 | V22: =G('CB&P'!E$14,((-J$20)*'CB&P'!E$13/1440)*'CB&P'!U22/Data!V$24^2,0.00001) -> 0.9715901638
N23: 0 | O23: =IF(Data!B39>E$6,Data!B39-E$6,0) -> 0 | P23: =IF(N23>0,Data!J39/'CB&P'!E$7,0) -> 0 | Q23: =IF(N23>0,G(E$14,((-J$20)*'CB&P'!E$13/1440)*'CB&P'!O23/Data!V$24^2,'CB&P'!Q$2),0) -> 0 | R23: 0 | T23: 15 | U23: 6.044015414 | V23: =G('CB&P'!E$14,((-J$20)*'CB&P'!E$13/1440)*'CB&P'!U23/Data!V$24^2,0.00001) -> 0.9707216362
N24: 0 | O24: =IF(Data!B40>E$6,Data!B40-E$6,0) -> 0 | P24: =IF(N24>0,Data!J40/'CB&P'!E$7,0) -> 0 | Q24: =IF(N24>0,G(E$14,((-J$20)*'CB&P'!E$13/1440)*'CB&P'!O24/Data!V$24^2,'CB&P'!Q$2),0) -> 0 | R24: 0 | T24: 16 | U24: 6.332946957 | V24: =G('CB&P'!E$14,((-J$20)*'CB&P'!E$13/1440)*'CB&P'!U24/Data!V$24^2,0.00001) -> 0.9698247792
N25: 0 | O25: =IF(Data!B41>E$6,Data!B41-E$6,0) -> 0 | P25: =IF(N25>0,Data!J41/'CB&P'!E$7,0) -> 0 | Q25: =IF(N25>0,G(E$14,((-J$20)*'CB&P'!E$13/1440)*'CB&P'!O25/Data!V$24^2,'CB&P'!Q$2),0) -> 0 | R25: 0 | T25: 17 | U25: 6.635690747 | V25: =G('CB&P'!E$14,((-J$20)*'CB&P'!E$13/1440)*'CB&P'!U25/Data!V$24^2,0.00001) -> 0.9688986155
N26: 0 | O26: =IF(Data!B42>E$6,Data!B42-E$6,0) -> 0 | P26: =IF(N26>0,Data!J42/'CB&P'!E$7,0) -> 0 | Q26: =IF(N26>0,G(E$14,((-J$20)*'CB&P'!E$13/1440)*'CB&P'!O26/Data!V$24^2,'CB&P'!Q$2),0) -> 0 | R26: 0 | T26: 18 | U26: 6.952907073 | V26: =G('CB&P'!E$14,((-J$20)*'CB&P'!E$13/1440)*'CB&P'!U26/Data!V$24^2,0.00001) -> 0.9679421331
N27: 0 | O27: =IF(Data!B43>E$6,Data!B43-E$6,0) -> 0 | P27: =IF(N27>0,Data!J43/'CB&P'!E$7,0) -> 0 | Q27: =IF(N27>0,G(E$14,((-J$20)*'CB&P'!E$13/1440)*'CB&P'!O27/Data!V$24^2,'CB&P'!Q$2),0) -> 0 | R27: =N27*(P27-Q27)^2 -> 0 | T27: 19 | U27: 7.285287788 | V27: =G('CB&P'!E$14,((-J$20)*'CB&P'!E$13/1440)*'CB&P'!U27/Data!V$24^2,0.00001) -> 0.9669542842
N28: 0 | O28: =IF(Data!B44>E$6,Data!B44-E$6,0) -> 0 | P28: =IF(N28>0,Data!J44/'CB&P'!E$7,0) -> 0 | Q28: =IF(N28>0,G(E$14,((-J$20)*'CB&P'!E$13/1440)*'CB&P'!O28/Data!V$24^2,'CB&P'!Q$2),0) -> 0 | R28: =N28*(P28-Q28)^2 -> 0 | T28: 20 | U28: 7.633557819 | V28: =G('CB&P'!E$14,((-J$20)*'CB&P'!E$13/1440)*'CB&P'!U28/Data!V$24^2,0.00001) -> 0.9659339847
N29: 0 | O29: =IF(Data!B45>E$6,Data!B45-E$6,0) -> 0 | P29: =IF(N29>0,Data!J45/'CB&P'!E$7,0) -> 0 | Q29: =IF(N29>0,G(E$14,((-J$20)*'CB&P'!E$13/1440)*'CB&P'!O29/Data!V$24^2,'CB&P'!Q$2),0) -> 0 | R29: 0 | T29: 21 | U29: 7.998476749 | V29: =G('CB&P'!E$14,((-J$20)*'CB&P'!E$13/1440)*'CB&P'!U29/Data!V$24^2,0.00001) -> 0.9648801126
N30: 0 | O30: =IF(Data!B46>E$6,Data!B46-E$6,0) -> 0 | P30: =IF(N30>0,Data!J46/'CB&P'!E$7,0) -> 0 | Q30: =IF(N30>0,G(E$14,((-J$20)*'CB&P'!E$13/1440)*'CB&P'!O30/Data!V$24^2,'CB&P'!Q$2),0) -> 0 | R30: 0 | T30: 22 | U30: 8.38084047 | V30: =G('CB&P'!E$14,((-J$20)*'CB&P'!E$13/1440)*'CB&P'!U30/Data!V$24^2,0.00001) -> 0.9637915075
N31: 0 | O31: =IF(Data!B47>E$6,Data!B47-E$6,0) -> 0 | P31: =IF(N31>0,Data!J47/'CB&P'!E$7,0) -> 0 | Q31: =IF(N31>0,G(E$14,((-J$20)*'CB&P'!E$13/1440)*'CB&P'!O31/Data!V$24^2,'CB&P'!Q$2),0) -> 0 | R31: 0 | T31: 23 | U31: 8.781482924 | V31: =G('CB&P'!E$14,((-J$20)*'CB&P'!E$13/1440)*'CB&P'!U31/Data!V$24^2,0.00001) -> 0.9626669693
N32: 0 | O32: =IF(Data!B48>E$6,Data!B48-E$6,0) -> 0 | P32: =IF(N32>0,Data!J48/'CB&P'!E$7,0) -> 0 | Q32: =IF(N32>0,G(E$14,((-J$20)*'CB&P'!E$13/1440)*'CB&P'!O32/Data!V$24^2,'CB&P'!Q$2),0) -> 0 | R32: 0 | T32: 24 | U32: 9.201277917 | V32: =G('CB&P'!E$14,((-J$20)*'CB&P'!E$13/1440)*'CB&P'!U32/Data!V$24^2,0.00001) -> 0.9615052573
N33: 0 | O33: =IF(Data!B49>E$6,Data!B49-E$6,0) -> 0 | P33: =IF(N33>0,Data!J49/'CB&P'!E$7,0) -> 0 | Q33: =IF(N33>0,G(E$14,((-J$20)*'CB&P'!E$13/1440)*'CB&P'!O33/Data!V$24^2,'CB&P'!Q$2),0) -> 0 | R33: 0 | T33: 25 | U33: 9.641141027 | V33: =G('CB&P'!E$14,((-J$20)*'CB&P'!E$13/1440)*'CB&P'!U33/Data!V$24^2,0.00001) -> 0.9603050889
N34: 0 | O34: =IF(Data!B50>E$6,Data!B50-E$6,0) -> 0 | P34: =IF(N34>0,Data!J50/'CB&P'!E$7,0) -> 0 | Q34: =IF(N34>0,G(E$14,((-J$20)*'CB&P'!E$13/1440)*'CB&P'!O34/Data!V$24^2,'CB&P'!Q$2),0) -> 0 | R34: 0 | T34: 26 | U34: 10.1020316 | V34: =G('CB&P'!E$14,((-J$20)*'CB&P'!E$13/1440)*'CB&P'!U34/Data!V$24^2,0.00001) -> 0.9590651387
N35: 0 | O35: =IF(Data!B51>E$6,Data!B51-E$6,0) -> 0 | P35: =IF(N35>0,Data!J51/'CB&P'!E$7,0) -> 0 | Q35: =IF(N35>0,G(E$14,((-J$20)*'CB&P'!E$13/1440)*'CB&P'!O35/Data!V$24^2,'CB&P'!Q$2),0) -> 0 | R35: 0 | T35: 27 | U35: 10.58495486 | V35: =G('CB&P'!E$14,((-J$20)*'CB&P'!E$13/1440)*'CB&P'!U35/Data!V$24^2,0.00001) -> 0.9577840371
N36: 0 | O36: =IF(Data!B52>E$6,Data!B52-E$6,0) -> 0 | P36: =IF(N36>0,Data!J52/'CB&P'!E$7,0) -> 0 | Q36: =IF(N36>0,G(E$14,((-J$20)*'CB&P'!E$13/1440)*'CB&P'!O36/Data!V$24^2,'CB&P'!Q$2),0) -> 0 | R36: 0 | T36: 28 | U36: 11.09096404 | V36: =G('CB&P'!E$14,((-J$20)*'CB&P'!E$13/1440)*'CB&P'!U36/Data!V$24^2,0.00001) -> 0.9564603696
N37: 0 | O37: =IF(Data!B53>E$6,Data!B53-E$6,0) -> 0 | P37: =IF(N37>0,Data!J53/'CB&P'!E$7,0) -> 0 | Q37: =IF(N37>0,G(E$14,((-J$20)*'CB&P'!E$13/1440)*'CB&P'!O37/Data!V$24^2,'CB&P'!Q$2),0) -> 0 | R37: 0 | T37: 29 | U37: 11.62116278 | V37: =G('CB&P'!E$14,((-J$20)*'CB&P'!E$13/1440)*'CB&P'!U37/Data!V$24^2,0.00001) -> 0.9550926752
N38: 0 | O38: =IF(Data!B54>E$6,Data!B54-E$6,0) -> 0 | P38: =IF(N38>0,Data!J54/'CB&P'!E$7,0) -> 0 | Q38: =IF(N38>0,G(E$14,((-J$20)*'CB&P'!E$13/1440)*'CB&P'!O38/Data!V$24^2,'CB&P'!Q$2),0) -> 0 | R38: 0 | T38: 30 | U38: 12.17670744 | V38: =G('CB&P'!E$14,((-J$20)*'CB&P'!E$13/1440)*'CB&P'!U38/Data!V$24^2,0.00001) -> 0.9536794453
N39: 0 | O39: =IF(Data!B55>E$6,Data!B55-E$6,0) -> 0 | P39: =IF(N39>0,Data!J55/'CB&P'!E$7,0) -> 0 | Q39: =IF(N39>0,G(E$14,((-J$20)*'CB&P'!E$13/1440)*'CB&P'!O39/Data!V$24^2,'CB&P'!Q$2),0) -> 0 | R39: 0 | T39: 31 | U39: 12.75880967 | V39: =G('CB&P'!E$14,((-J$20)*'CB&P'!E$13/1440)*'CB&P'!U39/Data!V$24^2,0.00001) -> 0.952219123
N40: 0 | O40: =IF(Data!B56>E$6,Data!B56-E$6,0) -> 0 | P40: =IF(N40>0,Data!J56/'CB&P'!E$7,0) -> 0 | Q40: =IF(N40>0,G(E$14,((-J$20)*'CB&P'!E$13/1440)*'CB&P'!O40/Data!V$24^2,'CB&P'!Q$2),0) -> 0 | R40: 0 | T40: 32 | U40: =EXP(LN(J$15)+(LN(J$16)-LN(J$15))*T40/100) -> 13.36873905 | V40: =G('CB&P'!E$14,((-J$20)*'CB&P'!E$13/1440)*'CB&P'!U40/Data!V$24^2,0.00001) -> 0.950710101
N41: 0 | O41: =IF(Data!B57>E$6,Data!B57-E$6,0) -> 0 | P41: =IF(N41>0,Data!J57/'CB&P'!E$7,0) -> 0 | Q41: =IF(N41>0,G(E$14,((-J$20)*'CB&P'!E$13/1440)*'CB&P'!O41/Data!V$24^2,'CB&P'!Q$2),0) -> 0 | R41: 0 | T41: 33 | U41: 14.00782584 | V41: =G('CB&P'!E$14,((-J$20)*'CB&P'!E$13/1440)*'CB&P'!U41/Data!V$24^2,0.00001) -> 0.9491507214
N42: 0 | O42: =IF(Data!B58>E$6,Data!B58-E$6,0) -> 0 | P42: =IF(N42>0,Data!J58/'CB&P'!E$7,0) -> 0 | Q42: =IF(N42>0,G(E$14,((-J$20)*'CB&P'!E$13/1440)*'CB&P'!O42/Data!V$24^2,'CB&P'!Q$2),0) -> 0 | R42: 0 | T42: 34 | U42: 14.6774639 | V42: =G('CB&P'!E$14,((-J$20)*'CB&P'!E$13/1440)*'CB&P'!U42/Data!V$24^2,0.00001) -> 0.9475392736
N43: 0 | O43: =IF(Data!B59>E$6,Data!B59-E$6,0) -> 0 | P43: =IF(N43>0,Data!J59/'CB&P'!E$7,0) -> 0 | Q43: =IF(N43>0,G(E$14,((-J$20)*'CB&P'!E$13/1440)*'CB&P'!O43/Data!V$24^2,'CB&P'!Q$2),0) -> 0 | R43: 0 | T43: 35 | U43: 15.37911371 | V43: =G('CB&P'!E$14,((-J$20)*'CB&P'!E$13/1440)*'CB&P'!U43/Data!V$24^2,0.00001) -> 0.9458739939
N44: 0 | O44: =IF(Data!B60>E$6,Data!B60-E$6,0) -> 0 | P44: =IF(N44>0,Data!J60/'CB&P'!E$7,0) -> 0 | Q44: =IF(N44>0,G(E$14,((-J$20)*'CB&P'!E$13/1440)*'CB&P'!O44/Data!V$24^2,'CB&P'!Q$2),0) -> 0 | R44: 0 | T44: 36 | U44: 16.11430559 | V44: =G('CB&P'!E$14,((-J$20)*'CB&P'!E$13/1440)*'CB&P'!U44/Data!V$24^2,0.00001) -> 0.9441530639
N45: 0 | O45: =IF(Data!B61>E$6,Data!B61-E$6,0) -> 0 | P45: =IF(N45>0,Data!J61/'CB&P'!E$7,0) -> 0 | Q45: =IF(N45>0,G(E$14,((-J$20)*'CB&P'!E$13/1440)*'CB&P'!O45/Data!V$24^2,'CB&P'!Q$2),0) -> 0 | R45: 0 | T45: 37 | U45: 16.884643 | V45: =G('CB&P'!E$14,((-J$20)*'CB&P'!E$13/1440)*'CB&P'!U45/Data!V$24^2,0.00001) -> 0.9423746094
N46: 0 | O46: =IF(Data!B62>E$6,Data!B62-E$6,0) -> 0 | P46: =IF(N46>0,Data!J62/'CB&P'!E$7,0) -> 0 | Q46: =IF(N46>0,G(E$14,((-J$20)*'CB&P'!E$13/1440)*'CB&P'!O46/Data!V$24^2,'CB&P'!Q$2),0) -> 0 | R46: 0 | T46: 38 | U46: 17.69180605 | V46: =G('CB&P'!E$14,((-J$20)*'CB&P'!E$13/1440)*'CB&P'!U46/Data!V$24^2,0.00001) -> 0.9405366993
N47: 0 | O47: =IF(Data!B63>E$6,Data!B63-E$6,0) -> 0 | P47: =IF(N47>0,Data!J63/'CB&P'!E$7,0) -> 0 | Q47: =IF(N47>0,G(E$14,((-J$20)*'CB&P'!E$13/1440)*'CB&P'!O47/Data!V$24^2,'CB&P'!Q$2),0) -> 0 | R47: 0 | T47: 39 | U47: 18.53755519 | V47: =G('CB&P'!E$14,((-J$20)*'CB&P'!E$13/1440)*'CB&P'!U47/Data!V$24^2,0.00001) -> 0.9386373444
N48: 0 | O48: =IF(Data!B64>E$6,Data!B64-E$6,0) -> 0 | P48: =IF(N48>0,Data!J64/'CB&P'!E$7,0) -> 0 | Q48: =IF(N48>0,G(E$14,((-J$20)*'CB&P'!E$13/1440)*'CB&P'!O48/Data!V$24^2,'CB&P'!Q$2),0) -> 0 | R48: 0 | T48: 40 | U48: 19.42373499 | V48: =G('CB&P'!E$14,((-J$20)*'CB&P'!E$13/1440)*'CB&P'!U48/Data!V$24^2,0.00001) -> 0.9366744968
T49: 41 | U49: 20.35227824 | V49: =G('CB&P'!E$14,((-J$20)*'CB&P'!E$13/1440)*'CB&P'!U49/Data!V$24^2,0.00001) -> 0.9346460482
T50: 42 | U50: 21.3252101 | V50: =G('CB&P'!E$14,((-J$20)*'CB&P'!E$13/1440)*'CB&P'!U50/Data!V$24^2,0.00001) -> 0.9325498294
T51: 43 | U51: 22.34465255 | V51: =G('CB&P'!E$14,((-J$20)*'CB&P'!E$13/1440)*'CB&P'!U51/Data!V$24^2,0.00001) -> 0.9303836093
T52: 44 | U52: 23.412829 | V52: =G('CB&P'!E$14,((-J$20)*'CB&P'!E$13/1440)*'CB&P'!U52/Data!V$24^2,0.00001) -> 0.9281450927
T53: 45 | U53: 24.53206916 | V53: =G('CB&P'!E$14,((-J$20)*'CB&P'!E$13/1440)*'CB&P'!U53/Data!V$24^2,0.00001) -> 0.9258319256
T54: 46 | U54: 25.70481411 | V54: =G('CB&P'!E$14,((-J$20)*'CB&P'!E$13/1440)*'CB&P'!U54/Data!V$24^2,0.00001) -> 0.9234416842
T55: 47 | U55: 26.93362163 | V55: =G('CB&P'!E$14,((-J$20)*'CB&P'!E$13/1440)*'CB&P'!U55/Data!V$24^2,0.00001) -> 0.9209718823
T56: 48 | U56: 28.22117177 | V56: =G('CB&P'!E$14,((-J$20)*'CB&P'!E$13/1440)*'CB&P'!U56/Data!V$24^2,0.00001) -> 0.9184199688
T57: 49 | U57: 29.57027267 | V57: =G('CB&P'!E$14,((-J$20)*'CB&P'!E$13/1440)*'CB&P'!U57/Data!V$24^2,0.00001) -> 0.9157833267
T58: 50 | U58: 30.98386677 | V58: =G('CB&P'!E$14,((-J$20)*'CB&P'!E$13/1440)*'CB&P'!U58/Data!V$24^2,0.00001) -> 0.9130592738
T59: 51 | U59: 32.46503712 | V59: =G('CB&P'!E$14,((-J$20)*'CB&P'!E$13/1440)*'CB&P'!U59/Data!V$24^2,0.00001) -> 0.9102450621
T60: 52 | U60: 34.01701418 | V60: =G('CB&P'!E$14,((-J$20)*'CB&P'!E$13/1440)*'CB&P'!U60/Data!V$24^2,0.00001) -> 0.907337878
T61: 53 | U61: 35.64318282 | V61: =G('CB&P'!E$14,((-J$20)*'CB&P'!E$13/1440)*'CB&P'!U61/Data!V$24^2,0.00001) -> 0.9043348432
T62: 54 | U62: 37.34708976 | V62: =G('CB&P'!E$14,((-J$20)*'CB&P'!E$13/1440)*'CB&P'!U62/Data!V$24^2,0.00001) -> 0.9012330147
T63: 55 | U63: 39.13245123 | V63: =G('CB&P'!E$14,((-J$20)*'CB&P'!E$13/1440)*'CB&P'!U63/Data!V$24^2,0.00001) -> 0.8980293859
T64: 56 | U64: 41.00316114 | V64: =G('CB&P'!E$14,((-J$20)*'CB&P'!E$13/1440)*'CB&P'!U64/Data!V$24^2,0.00001) -> 0.8947208875
T65: 57 | U65: 42.96329952 | V65: =G('CB&P'!E$14,((-J$20)*'CB&P'!E$13/1440)*'CB&P'!U65/Data!V$24^2,0.00001) -> 0.8913043892
T66: 58 | U66: 45.01714147 | V66: =G('CB&P'!E$14,((-J$20)*'CB&P'!E$13/1440)*'CB&P'!U66/Data!V$24^2,0.00001) -> 0.887776701
T67: 59 | U67: 47.16916645 | V67: =G('CB&P'!E$14,((-J$20)*'CB&P'!E$13/1440)*'CB&P'!U67/Data!V$24^2,0.00001) -> 0.8841345752
T68: 60 | U68: 49.42406805 | V68: =G('CB&P'!E$14,((-J$20)*'CB&P'!E$13/1440)*'CB&P'!U68/Data!V$24^2,0.00001) -> 0.8803747091
T69: 61 | U69: 51.78676424 | V69: =G('CB&P'!E$14,((-J$20)*'CB&P'!E$13/1440)*'CB&P'!U69/Data!V$24^2,0.00001) -> 0.8764937471
T70: 62 | U70: 54.2624081 | V70: =G('CB&P'!E$14,((-J$20)*'CB&P'!E$13/1440)*'CB&P'!U70/Data!V$24^2,0.00001) -> 0.8724882844
T71: 63 | U71: 56.85639905 | V71: =G('CB&P'!E$14,((-J$20)*'CB&P'!E$13/1440)*'CB&P'!U71/Data!V$24^2,0.00001) -> 0.8683548703
T72: 64 | U72: =EXP(LN(J$15)+(LN(J$16)-LN(J$15))*T72/100) -> 59.57439462 | V72: =G('CB&P'!E$14,((-J$20)*'CB&P'!E$13/1440)*'CB&P'!U72/Data!V$24^2,0.00001) -> 0.864090012
T73: 65 | U73: 62.42232278 | V73: =G('CB&P'!E$14,((-J$20)*'CB&P'!E$13/1440)*'CB&P'!U73/Data!V$24^2,0.00001) -> 0.8596901797
T74: 66 | U74: 65.40639492 | V74: =G('CB&P'!E$14,((-J$20)*'CB&P'!E$13/1440)*'CB&P'!U74/Data!V$24^2,0.00001) -> 0.8551518112
T75: 67 | U75: 68.53311934 | V75: =G('CB&P'!E$14,((-J$20)*'CB&P'!E$13/1440)*'CB&P'!U75/Data!V$24^2,0.00001) -> 0.8504713177
T76: 68 | U76: 71.80931547 | V76: =G('CB&P'!E$14,((-J$20)*'CB&P'!E$13/1440)*'CB&P'!U76/Data!V$24^2,0.00001) -> 0.8456450899
T77: 69 | U77: 75.24212873 | V77: =G('CB&P'!E$14,((-J$20)*'CB&P'!E$13/1440)*'CB&P'!U77/Data!V$24^2,0.00001) -> 0.8406695052
T78: 70 | U78: 78.83904615 | V78: =G('CB&P'!E$14,((-J$20)*'CB&P'!E$13/1440)*'CB&P'!U78/Data!V$24^2,0.00001) -> 0.8355409352
T79: 71 | U79: 82.60791265 | V79: =G('CB&P'!E$14,((-J$20)*'CB&P'!E$13/1440)*'CB&P'!U79/Data!V$24^2,0.00001) -> 0.8302557537
T80: 72 | U80: 86.55694818 | V80: =G('CB&P'!E$14,((-J$20)*'CB&P'!E$13/1440)*'CB&P'!U80/Data!V$24^2,0.00001) -> 0.8248103462
T81: 73 | U81: 90.69476565 | V81: =G('CB&P'!E$14,((-J$20)*'CB&P'!E$13/1440)*'CB&P'!U81/Data!V$24^2,0.00001) -> 0.8192011192
T82: 74 | U82: 95.03038969 | V82: =G('CB&P'!E$14,((-J$20)*'CB&P'!E$13/1440)*'CB&P'!U82/Data!V$24^2,0.00001) -> 0.8134245116
T83: 75 | U83: 99.57327637 | V83: =G('CB&P'!E$14,((-J$20)*'CB&P'!E$13/1440)*'CB&P'!U83/Data!V$24^2,0.00001) -> 0.8074770056
T84: 76 | U84: 104.3333338 | V84: =G('CB&P'!E$14,((-J$20)*'CB&P'!E$13/1440)*'CB&P'!U84/Data!V$24^2,0.00001) -> 0.801355139
T85: 77 | U85: 109.3209437 | V85: =G('CB&P'!E$14,((-J$20)*'CB&P'!E$13/1440)*'CB&P'!U85/Data!V$24^2,0.00001) -> 0.7950555213
T86: 78 | U86: 114.5469841 | V86: =G('CB&P'!E$14,((-J$20)*'CB&P'!E$13/1440)*'CB&P'!U86/Data!V$24^2,0.00001) -> 0.7885748428
T87: 79 | U87: 120.0228531 | V87: =G('CB&P'!E$14,((-J$20)*'CB&P'!E$13/1440)*'CB&P'!U87/Data!V$24^2,0.00001) -> 0.7819098947
T88: 80 | U88: 125.7604937 | V88: =G('CB&P'!E$14,((-J$20)*'CB&P'!E$13/1440)*'CB&P'!U88/Data!V$24^2,0.00001) -> 0.7750575834
T89: 81 | U89: 131.7724197 | V89: =G('CB&P'!E$14,((-J$20)*'CB&P'!E$13/1440)*'CB&P'!U89/Data!V$24^2,0.00001) -> 0.7680149485
T90: 82 | U90: 138.0717432 | V90: =G('CB&P'!E$14,((-J$20)*'CB&P'!E$13/1440)*'CB&P'!U90/Data!V$24^2,0.00001) -> 0.7607791812
T91: 83 | U91: 144.6722032 | V91: =G('CB&P'!E$14,((-J$20)*'CB&P'!E$13/1440)*'CB&P'!U91/Data!V$24^2,0.00001) -> 0.7533476439
T92: 84 | U92: 151.5881953 | V92: =G('CB&P'!E$14,((-J$20)*'CB&P'!E$13/1440)*'CB&P'!U92/Data!V$24^2,0.00001) -> 0.7457178906
T93: 85 | U93: 158.8348034 | V93: =G('CB&P'!E$14,((-J$20)*'CB&P'!E$13/1440)*'CB&P'!U93/Data!V$24^2,0.00001) -> 0.7378876894
T94: 86 | U94: 166.4278325 | V94: =G('CB&P'!E$14,((-J$20)*'CB&P'!E$13/1440)*'CB&P'!U94/Data!V$24^2,0.00001) -> 0.7298550443
T95: 87 | U95: 174.383843 | V95: =G('CB&P'!E$14,((-J$20)*'CB&P'!E$13/1440)*'CB&P'!U95/Data!V$24^2,0.00001) -> 0.7216182198
T96: 88 | U96: 182.7201872 | V96: =G('CB&P'!E$14,((-J$20)*'CB&P'!E$13/1440)*'CB&P'!U96/Data!V$24^2,0.00001) -> 0.7131757657
T97: 89 | U97: 191.4550467 | V97: =G('CB&P'!E$14,((-J$20)*'CB&P'!E$13/1440)*'CB&P'!U97/Data!V$24^2,0.00001) -> 0.7045265422
T98: 90 | U98: 200.6074724 | V98: =G('CB&P'!E$14,((-J$20)*'CB&P'!E$13/1440)*'CB&P'!U98/Data!V$24^2,0.00001) -> 0.6956697477
T99: 91 | U99: 210.1974258 | V99: =G('CB&P'!E$14,((-J$20)*'CB&P'!E$13/1440)*'CB&P'!U99/Data!V$24^2,0.00001) -> 0.6866049453
T100: 92 | U100: 220.2458229 | V100: =G('CB&P'!E$14,((-J$20)*'CB&P'!E$13/1440)*'CB&P'!U100/Data!V$24^2,0.00001) -> 0.6773320917
T101: 93 | U101: 230.7745792 | V101: =G('CB&P'!E$14,((-J$20)*'CB&P'!E$13/1440)*'CB&P'!U101/Data!V$24^2,0.00001) -> 0.6678515658
T102: 94 | U102: 241.8066581 | V102: =G('CB&P'!E$14,((-J$20)*'CB&P'!E$13/1440)*'CB&P'!U102/Data!V$24^2,0.00001) -> 0.6581641983
T103: 95 | U103: 253.3661208 | V103: =G('CB&P'!E$14,((-J$20)*'CB&P'!E$13/1440)*'CB&P'!U103/Data!V$24^2,0.00001) -> 0.648271301
T104: 96 | U104: =EXP(LN(J$15)+(LN(J$16)-LN(J$15))*T104/100) -> 265.4781786 | V104: =G('CB&P'!E$14,((-J$20)*'CB&P'!E$13/1440)*'CB&P'!U104/Data!V$24^2,0.00001) -> 0.638174697
T105: 97 | U105: 278.1692481 | V105: =G('CB&P'!E$14,((-J$20)*'CB&P'!E$13/1440)*'CB&P'!U105/Data!V$24^2,0.00001) -> 0.6278767502
T106: 98 | U106: 291.4670087 | V106: =G('CB&P'!E$14,((-J$20)*'CB&P'!E$13/1440)*'CB&P'!U106/Data!V$24^2,0.00001) -> 0.6173803953
T107: 99 | U107: 305.400463 | V107: =G('CB&P'!E$14,((-J$20)*'CB&P'!E$13/1440)*'CB&P'!U107/Data!V$24^2,0.00001) -> 0.6066891664
T108: 100 | U108: 320 | V108: =G('CB&P'!E$14,((-J$20)*'CB&P'!E$13/1440)*'CB&P'!U108/Data!V$24^2,0.00001) -> 0.5958072255

Sheet B&R Type Curve
A1: Bouwer and Rice Short Term LNAPL Mobility Test Type Curves
A2: =CONCATENATE("B&R Type Curves: Casing Rad. (ft) = ",Data!B6," ; Borehole Rad. (ft) = ",Data!B7) -> B&R Type Curves: Casing Rad. (ft) = 0.083 ; Borehole Rad. (ft) = 0.167
D5: Enter these values
A6: Type Curve ID | B6: Type Curve Name | C6: Notes | D6: Max Time (min) | E6: Transmissivity (ft2/day)
A7: 1 | B7: =CONCATENATE("T=",E7," ft2/day") -> T=10 ft2/day | D7: 10 | E7: 10 | G7: J-Ratio | K7: Type Curve 1 | N7: Type Curve 2 | Q7: Type Curve 3 | T7: Type Curve 4 | W7: Type Curve 5 | Z7: Type Curve 6 | AC7: Type Curve 7
A8: 2 | B8: T=5 ft2/day | D8: 50 | E8: 5 | G8: =Figures!U27 -> -0.5142857143 | H8: <-- If uncertain use | L8: T (ft2/day) | O8: T (ft2/day) | R8: T (ft2/day) | U8: T (ft2/day) | X8: T (ft2/day) | AA8: T (ft2/day) | AD8: T (ft2/day)
A9: 3 | B9: T=2 ft2/day | D9: 150 | E9: 2 | H9: =-(1-Data!B9) -> -0.22 | L9: =E7 -> 10 | O9: =E8 -> 5 | R9: =E9 -> 2 | U9: =E10 -> 1 | X9: =E11 -> 0.5 | AA9: =E12 -> 0.2 | AD9: =E13 -> 0.1
A10: 4 | B10: T=1 ft2/day | D10: 250 | E10: 1
A11: 5 | B11: T=0.5 ft2/day | D11: 400 | E11: 0.5 | K11: t (min) | L11: s(t)/s0 | N11: t (min) | O11: s(t)/s0 | Q11: t (min) | R11: s(t)/s0 | T11: t (min) | U11: s(t)/s0 | W11: t (min) | X11: s(t)/s0 | Z11: t (min) | AA11: s(t)/s0 | AC11: t (min) | AD11: s(t)/s0
A12: 6 | B12: T=0.2 ft2/day | D12: 400 | E12: 0.2 | K12: 0 | L12: =EXP(-(2*L$9*(K12/1440)*(-G$8)/(Data!B$13^2*LN('B&R'!$J$12)))) -> 1 | N12: 0 | O12: =EXP(-(2*O$9*(N12/1440)*(-G$8))/(Data!B$13^2*LN('B&R'!$J$12))) -> 1 | Q12: 0 | R12: =EXP(-(2*R$9*(Q12/1440)*(-G$8))/(Data!B$13^2*LN('B&R'!$J$12))) -> 1 | T12: 0 | U12: =EXP(-(2*U$9*(T12/1440)*(-G$8))/(Data!B$13^2*LN('B&R'!J$12))) -> 1 | W12: 0 | X12: =EXP(-(2*X$9*(W12/1440)*(-G$8))/(Data!B$13^2*LN('B&R'!$J$12))) -> 1 | Z12: 0 | AA12: =EXP(-(2*AA$9*(Z12/1440)*(-G$8))/(Data!B$13^2*LN('B&R'!$J$12))) -> 1 | AC12: 0 | AD12: =EXP(-(2*AD$9*(AC12/1440)*(-G$8))/(Data!B$13^2*LN('B&R'!$J$12))) -> 1
A13: 7 | B13: T=0.1 ft2/day | D13: 400 | E13: 0.1 | K13: =(K$42-K$12)/30+K12 -> 0.3333333333 | L13: =EXP(-(2*L$9*(K13/1440)*(-G$8)/(Data!B$13^2*LN('B&R'!$J$12)))) -> 0.8885919657 | N13: =(N$42-N$12)/30+N12 -> 1.666666667 | O13: =EXP(-(2*O$9*(N13/1440)*(-G$8))/(Data!B$13^2*LN('B&R'!$J$12))) -> 0.7443136019 | Q13: =(Q$42-Q$12)/30+Q12 -> 5 | R13: =EXP(-(2*R$9*(Q13/1440)*(-G$8))/(Data!B$13^2*LN('B&R'!$J$12))) -> 0.7016283788 | T13: =(T$42-T$12)/30+T12 -> 8.333333333 | U13: =EXP(-(2*U$9*(T13/1440)*(-G$8))/(Data!B$13^2*LN('B&R'!J$12))) -> 0.7443136019 | W13: =(W$42-W$12)/30+W12 -> 13.33333333 | X13: =EXP(-(2*X$9*(W13/1440)*(-G$8))/(Data!B$13^2*LN('B&R'!$J$12))) -> 0.7895956815 | Z13: =(Z$42-Z$12)/30+Z12 -> 13.33333333 | AA13: =EXP(-(2*AA$9*(Z13/1440)*(-G$8))/(Data!B$13^2*LN('B&R'!$J$12))) -> 0.9098334629 | AC13: =(AC$42-AC$12)/30+AC12 -> 13.33333333 | AD13: =EXP(-(2*AD$9*(AC13/1440)*(-G$8))/(Data!B$13^2*LN('B&R'!$J$12))) -> 0.9538519083
K14: 0.6666666667 | L14: =EXP(-(2*L$9*(K14/1440)*(-G$8)/(Data!B$13^2*LN('B&R'!$J$12)))) -> 0.7895956815 | N14: 3.333333333 | O14: =EXP(-(2*O$9*(N14/1440)*(-G$8))/(Data!B$13^2*LN('B&R'!$J$12))) -> 0.5540027379 | Q14: 10 | R14: =EXP(-(2*R$9*(Q14/1440)*(-G$8))/(Data!B$13^2*LN('B&R'!$J$12))) -> 0.4922823819 | T14: 16.66666667 | U14: =EXP(-(2*U$9*(T14/1440)*(-G$8))/(Data!B$13^2*LN('B&R'!J$12))) -> 0.5540027379 | W14: 26.66666667 | X14: =EXP(-(2*X$9*(W14/1440)*(-G$8))/(Data!B$13^2*LN('B&R'!$J$12))) -> 0.6234613403 | Z14: 26.66666667 | AA14: =EXP(-(2*AA$9*(Z14/1440)*(-G$8))/(Data!B$13^2*LN('B&R'!$J$12))) -> 0.8277969302 | AC14: 26.66666667 | AD14: =EXP(-(2*AD$9*(AC14/1440)*(-G$8))/(Data!B$13^2*LN('B&R'!$J$12))) -> 0.9098334629
K15: 1 | L15: =EXP(-(2*L$9*(K15/1440)*(-G$8)/(Data!B$13^2*LN('B&R'!$J$12)))) -> 0.7016283788 | N15: 5 | O15: =EXP(-(2*O$9*(N15/1440)*(-G$8))/(Data!B$13^2*LN('B&R'!$J$12))) -> 0.4123517733 | Q15: 15 | R15: =EXP(-(2*R$9*(Q15/1440)*(-G$8))/(Data!B$13^2*LN('B&R'!$J$12))) -> 0.3453992895 | T15: 25 | U15: =EXP(-(2*U$9*(T15/1440)*(-G$8))/(Data!B$13^2*LN('B&R'!J$12))) -> 0.4123517733 | W15: 40 | X15: =EXP(-(2*X$9*(W15/1440)*(-G$8))/(Data!B$13^2*LN('B&R'!$J$12))) -> 0.4922823819 | Z15: 40 | AA15: =EXP(-(2*AA$9*(Z15/1440)*(-G$8))/(Data!B$13^2*LN('B&R'!$J$12))) -> 0.7531573476 | AC15: 40 | AD15: =EXP(-(2*AD$9*(AC15/1440)*(-G$8))/(Data!B$13^2*LN('B&R'!$J$12))) -> 0.8678463848
K16: 1.333333333 | L16: =EXP(-(2*L$9*(K16/1440)*(-G$8)/(Data!B$13^2*LN('B&R'!$J$12)))) -> 0.6234613403 | N16: 6.666666667 | O16: =EXP(-(2*O$9*(N16/1440)*(-G$8))/(Data!B$13^2*LN('B&R'!$J$12))) -> 0.3069190336 | Q16: 20 | R16: =EXP(-(2*R$9*(Q16/1440)*(-G$8))/(Data!B$13^2*LN('B&R'!$J$12))) -> 0.2423419435 | T16: 33.33333333 | U16: =EXP(-(2*U$9*(T16/1440)*(-G$8))/(Data!B$13^2*LN('B&R'!J$12))) -> 0.3069190336 | W16: 53.33333333 | X16: =EXP(-(2*X$9*(W16/1440)*(-G$8))/(Data!B$13^2*LN('B&R'!$J$12))) -> 0.3887040428 | Z16: 53.33333333 | AA16: =EXP(-(2*AA$9*(Z16/1440)*(-G$8))/(Data!B$13^2*LN('B&R'!$J$12))) -> 0.6852477576 | AC16: 53.33333333 | AD16: =EXP(-(2*AD$9*(AC16/1440)*(-G$8))/(Data!B$13^2*LN('B&R'!$J$12))) -> 0.8277969302
K17: 1.666666667 | L17: =EXP(-(2*L$9*(K17/1440)*(-G$8)/(Data!B$13^2*LN('B&R'!$J$12)))) -> 0.5540027379 | N17: 8.333333333 | O17: =EXP(-(2*O$9*(N17/1440)*(-G$8))/(Data!B$13^2*LN('B&R'!$J$12))) -> 0.2284440114 | Q17: 25 | R17: =EXP(-(2*R$9*(Q17/1440)*(-G$8))/(Data!B$13^2*LN('B&R'!$J$12))) -> 0.1700339849 | T17: 41.66666667 | U17: =EXP(-(2*U$9*(T17/1440)*(-G$8))/(Data!B$13^2*LN('B&R'!J$12))) -> 0.2284440114 | W17: 66.66666667 | X17: =EXP(-(2*X$9*(W17/1440)*(-G$8))/(Data!B$13^2*LN('B&R'!$J$12))) -> 0.3069190336 | Z17: 66.66666667 | AA17: =EXP(-(2*AA$9*(Z17/1440)*(-G$8))/(Data!B$13^2*LN('B&R'!$J$12))) -> 0.6234613403 | AC17: 66.66666667 | AD17: =EXP(-(2*AD$9*(AC17/1440)*(-G$8))/(Data!B$13^2*LN('B&R'!$J$12))) -> 0.7895956815
K18: 2 | L18: =EXP(-(2*L$9*(K18/1440)*(-G$8)/(Data!B$13^2*LN('B&R'!$J$12)))) -> 0.4922823819 | N18: 10 | O18: =EXP(-(2*O$9*(N18/1440)*(-G$8))/(Data!B$13^2*LN('B&R'!$J$12))) -> 0.1700339849 | Q18: 30 | R18: =EXP(-(2*R$9*(Q18/1440)*(-G$8))/(Data!B$13^2*LN('B&R'!$J$12))) -> 0.1193006692 | T18: 50 | U18: =EXP(-(2*U$9*(T18/1440)*(-G$8))/(Data!B$13^2*LN('B&R'!J$12))) -> 0.1700339849 | W18: 80 | X18: =EXP(-(2*X$9*(W18/1440)*(-G$8))/(Data!B$13^2*LN('B&R'!$J$12))) -> 0.2423419435 | Z18: 80 | AA18: =EXP(-(2*AA$9*(Z18/1440)*(-G$8))/(Data!B$13^2*LN('B&R'!$J$12))) -> 0.5672459902 | AC18: 80 | AD18: =EXP(-(2*AD$9*(AC18/1440)*(-G$8))/(Data!B$13^2*LN('B&R'!$J$12))) -> 0.7531573476
K19: 2.333333333 | L19: =EXP(-(2*L$9*(K19/1440)*(-G$8)/(Data!B$13^2*LN('B&R'!$J$12)))) -> 0.4374381694 | N19: 11.66666667 | O19: =EXP(-(2*O$9*(N19/1440)*(-G$8))/(Data!B$13^2*LN('B&R'!$J$12))) -> 0.1265586078 | Q19: 35 | R19: =EXP(-(2*R$9*(Q19/1440)*(-G$8))/(Data!B$13^2*LN('B&R'!$J$12))) -> 0.0837047351 | T19: 58.33333333 | U19: =EXP(-(2*U$9*(T19/1440)*(-G$8))/(Data!B$13^2*LN('B&R'!J$12))) -> 0.1265586078 | W19: 93.33333333 | X19: =EXP(-(2*X$9*(W19/1440)*(-G$8))/(Data!B$13^2*LN('B&R'!$J$12))) -> 0.191352152 | Z19: 93.33333333 | AA19: =EXP(-(2*AA$9*(Z19/1440)*(-G$8))/(Data!B$13^2*LN('B&R'!$J$12))) -> 0.5160993836 | AC19: 93.33333333 | AD19: =EXP(-(2*AD$9*(AC19/1440)*(-G$8))/(Data!B$13^2*LN('B&R'!$J$12))) -> 0.7184005732
K20: 2.666666667 | L20: =EXP(-(2*L$9*(K20/1440)*(-G$8)/(Data!B$13^2*LN('B&R'!$J$12)))) -> 0.3887040428 | N20: 13.33333333 | O20: =EXP(-(2*O$9*(N20/1440)*(-G$8))/(Data!B$13^2*LN('B&R'!$J$12))) -> 0.09419929319 | Q20: 40 | R20: =EXP(-(2*R$9*(Q20/1440)*(-G$8))/(Data!B$13^2*LN('B&R'!$J$12))) -> 0.05872961759 | T20: 66.66666667 | U20: =EXP(-(2*U$9*(T20/1440)*(-G$8))/(Data!B$13^2*LN('B&R'!J$12))) -> 0.09419929319 | W20: 106.6666667 | X20: =EXP(-(2*X$9*(W20/1440)*(-G$8))/(Data!B$13^2*LN('B&R'!$J$12))) -> 0.1510908329 | Z20: 106.6666667 | AA20: =EXP(-(2*AA$9*(Z20/1440)*(-G$8))/(Data!B$13^2*LN('B&R'!$J$12))) -> 0.4695644894 | AC20: 106.6666667 | AD20: =EXP(-(2*AD$9*(AC20/1440)*(-G$8))/(Data!B$13^2*LN('B&R'!$J$12))) -> 0.6852477576
K21: 3 | L21: =EXP(-(2*L$9*(K21/1440)*(-G$8)/(Data!B$13^2*LN('B&R'!$J$12)))) -> 0.3453992895 | N21: 15 | O21: =EXP(-(2*O$9*(N21/1440)*(-G$8))/(Data!B$13^2*LN('B&R'!$J$12))) -> 0.07011381521 | Q21: 45 | R21: =EXP(-(2*R$9*(Q21/1440)*(-G$8))/(Data!B$13^2*LN('B&R'!$J$12))) -> 0.04120636637 | T21: 75 | U21: =EXP(-(2*U$9*(T21/1440)*(-G$8))/(Data!B$13^2*LN('B&R'!J$12))) -> 0.07011381521 | W21: 120 | X21: =EXP(-(2*X$9*(W21/1440)*(-G$8))/(Data!B$13^2*LN('B&R'!$J$12))) -> 0.1193006692 | Z21: 120 | AA21: =EXP(-(2*AA$9*(Z21/1440)*(-G$8))/(Data!B$13^2*LN('B&R'!$J$12))) -> 0.4272254854 | AC21: 120 | AD21: =EXP(-(2*AD$9*(AC21/1440)*(-G$8))/(Data!B$13^2*LN('B&R'!$J$12))) -> 0.6536248813
K22: 3.333333333 | L22: =EXP(-(2*L$9*(K22/1440)*(-G$8)/(Data!B$13^2*LN('B&R'!$J$12)))) -> 0.3069190336 | N22: 16.66666667 | O22: =EXP(-(2*O$9*(N22/1440)*(-G$8))/(Data!B$13^2*LN('B&R'!$J$12))) -> 0.05218666634 | Q22: 50 | R22: =EXP(-(2*R$9*(Q22/1440)*(-G$8))/(Data!B$13^2*LN('B&R'!$J$12))) -> 0.02891155603 | T22: 83.33333333 | U22: =EXP(-(2*U$9*(T22/1440)*(-G$8))/(Data!B$13^2*LN('B&R'!J$12))) -> 0.05218666634 | W22: 133.3333333 | X22: =EXP(-(2*X$9*(W22/1440)*(-G$8))/(Data!B$13^2*LN('B&R'!$J$12))) -> 0.09419929319 | Z22: 133.3333333 | AA22: =EXP(-(2*AA$9*(Z22/1440)*(-G$8))/(Data!B$13^2*LN('B&R'!$J$12))) -> 0.3887040428 | AC22: 133.3333333 | AD22: =EXP(-(2*AD$9*(AC22/1440)*(-G$8))/(Data!B$13^2*LN('B&R'!$J$12))) -> 0.6234613403
K23: 3.666666667 | L23: =EXP(-(2*L$9*(K23/1440)*(-G$8)/(Data!B$13^2*LN('B&R'!$J$12)))) -> 0.2727257874 | N23: 18.33333333 | O23: =EXP(-(2*O$9*(N23/1440)*(-G$8))/(Data!B$13^2*LN('B&R'!$J$12))) -> 0.03884324559 | Q23: 55 | R23: =EXP(-(2*R$9*(Q23/1440)*(-G$8))/(Data!B$13^2*LN('B&R'!$J$12))) -> 0.02028516819 | T23: 91.66666667 | U23: =EXP(-(2*U$9*(T23/1440)*(-G$8))/(Data!B$13^2*LN('B&R'!J$12))) -> 0.03884324559 | W23: 146.6666667 | X23: =EXP(-(2*X$9*(W23/1440)*(-G$8))/(Data!B$13^2*LN('B&R'!$J$12))) -> 0.07437935511 | Z23: 146.6666667 | AA23: =EXP(-(2*AA$9*(Z23/1440)*(-G$8))/(Data!B$13^2*LN('B&R'!$J$12))) -> 0.3536559453 | AC23: 146.6666667 | AD23: =EXP(-(2*AD$9*(AC23/1440)*(-G$8))/(Data!B$13^2*LN('B&R'!$J$12))) -> 0.5946897892
K24: 4 | L24: =EXP(-(2*L$9*(K24/1440)*(-G$8)/(Data!B$13^2*LN('B&R'!$J$12)))) -> 0.2423419435 | N24: 20 | O24: =EXP(-(2*O$9*(N24/1440)*(-G$8))/(Data!B$13^2*LN('B&R'!$J$12))) -> 0.02891155603 | Q24: 60 | R24: =EXP(-(2*R$9*(Q24/1440)*(-G$8))/(Data!B$13^2*LN('B&R'!$J$12))) -> 0.01423264967 | T24: 100 | U24: =EXP(-(2*U$9*(T24/1440)*(-G$8))/(Data!B$13^2*LN('B&R'!J$12))) -> 0.02891155603 | W24: 160 | X24: =EXP(-(2*X$9*(W24/1440)*(-G$8))/(Data!B$13^2*LN('B&R'!$J$12))) -> 0.05872961759 | Z24: 160 | AA24: =EXP(-(2*AA$9*(Z24/1440)*(-G$8))/(Data!B$13^2*LN('B&R'!$J$12))) -> 0.3217680134 | AC24: 160 | AD24: =EXP(-(2*AD$9*(AC24/1440)*(-G$8))/(Data!B$13^2*LN('B&R'!$J$12))) -> 0.5672459902
K25: 4.333333333 | L25: =EXP(-(2*L$9*(K25/1440)*(-G$8)/(Data!B$13^2*LN('B&R'!$J$12)))) -> 0.215343104 | N25: 21.66666667 | O25: =EXP(-(2*O$9*(N25/1440)*(-G$8))/(Data!B$13^2*LN('B&R'!$J$12))) -> 0.02151926441 | Q25: 65 | R25: =EXP(-(2*R$9*(Q25/1440)*(-G$8))/(Data!B$13^2*LN('B&R'!$J$12))) -> 0.009986030912 | T25: 108.3333333 | U25: =EXP(-(2*U$9*(T25/1440)*(-G$8))/(Data!B$13^2*LN('B&R'!J$12))) -> 0.02151926441 | W25: 173.3333333 | X25: =EXP(-(2*X$9*(W25/1440)*(-G$8))/(Data!B$13^2*LN('B&R'!$J$12))) -> 0.04637265242 | Z25: 173.3333333 | AA25: =EXP(-(2*AA$9*(Z25/1440)*(-G$8))/(Data!B$13^2*LN('B&R'!$J$12))) -> 0.2927553059 | AC25: 173.3333333 | AD25: =EXP(-(2*AD$9*(AC25/1440)*(-G$8))/(Data!B$13^2*LN('B&R'!$J$12))) -> 0.5410686702
K26: 4.666666667 | L26: =EXP(-(2*L$9*(K26/1440)*(-G$8)/(Data!B$13^2*LN('B&R'!$J$12)))) -> 0.191352152 | N26: 23.33333333 | O26: =EXP(-(2*O$9*(N26/1440)*(-G$8))/(Data!B$13^2*LN('B&R'!$J$12))) -> 0.0160170812 | Q26: 70 | R26: =EXP(-(2*R$9*(Q26/1440)*(-G$8))/(Data!B$13^2*LN('B&R'!$J$12))) -> 0.007006482679 | T26: 116.6666667 | U26: =EXP(-(2*U$9*(T26/1440)*(-G$8))/(Data!B$13^2*LN('B&R'!J$12))) -> 0.0160170812 | W26: 186.6666667 | X26: =EXP(-(2*X$9*(W26/1440)*(-G$8))/(Data!B$13^2*LN('B&R'!$J$12))) -> 0.03661564609 | Z26: 186.6666667 | AA26: =EXP(-(2*AA$9*(Z26/1440)*(-G$8))/(Data!B$13^2*LN('B&R'!$J$12))) -> 0.2663585737 | AC26: 186.6666667 | AD26: =EXP(-(2*AD$9*(AC26/1440)*(-G$8))/(Data!B$13^2*LN('B&R'!$J$12))) -> 0.5160993836
K27: 5 | L27: =EXP(-(2*L$9*(K27/1440)*(-G$8)/(Data!B$13^2*LN('B&R'!$J$12)))) -> 0.1700339849 | N27: 25 | O27: =EXP(-(2*O$9*(N27/1440)*(-G$8))/(Data!B$13^2*LN('B&R'!$J$12))) -> 0.0119217314 | Q27: 75 | R27: =EXP(-(2*R$9*(Q27/1440)*(-G$8))/(Data!B$13^2*LN('B&R'!$J$12))) -> 0.004915947083 | T27: 125 | U27: =EXP(-(2*U$9*(T27/1440)*(-G$8))/(Data!B$13^2*LN('B&R'!J$12))) -> 0.0119217314 | W27: 200 | X27: =EXP(-(2*X$9*(W27/1440)*(-G$8))/(Data!B$13^2*LN('B&R'!$J$12))) -> 0.02891155603 | Z27: 200 | AA27: =EXP(-(2*AA$9*(Z27/1440)*(-G$8))/(Data!B$13^2*LN('B&R'!$J$12))) -> 0.2423419435 | AC27: 200 | AD27: =EXP(-(2*AD$9*(AC27/1440)*(-G$8))/(Data!B$13^2*LN('B&R'!$J$12))) -> 0.4922823819
K28: 5.333333333 | L28: =EXP(-(2*L$9*(K28/1440)*(-G$8)/(Data!B$13^2*LN('B&R'!$J$12)))) -> 0.1510908329 | N28: 26.66666667 | O28: =EXP(-(2*O$9*(N28/1440)*(-G$8))/(Data!B$13^2*LN('B&R'!$J$12))) -> 0.008873506837 | Q28: 80 | R28: =EXP(-(2*R$9*(Q28/1440)*(-G$8))/(Data!B$13^2*LN('B&R'!$J$12))) -> 0.003449167982 | T28: 133.3333333 | U28: =EXP(-(2*U$9*(T28/1440)*(-G$8))/(Data!B$13^2*LN('B&R'!J$12))) -> 0.008873506837 | W28: 213.3333333 | X28: =EXP(-(2*X$9*(W28/1440)*(-G$8))/(Data!B$13^2*LN('B&R'!$J$12))) -> 0.02282843979 | Z28: 213.3333333 | AA28: =EXP(-(2*AA$9*(Z28/1440)*(-G$8))/(Data!B$13^2*LN('B&R'!$J$12))) -> 0.2204908097 | AC28: 213.3333333 | AD28: =EXP(-(2*AD$9*(AC28/1440)*(-G$8))/(Data!B$13^2*LN('B&R'!$J$12))) -> 0.4695644894
K29: 5.666666667 | L29: =EXP(-(2*L$9*(K29/1440)*(-G$8)/(Data!B$13^2*LN('B&R'!$J$12)))) -> 0.1342581002 | N29: 28.33333333 | O29: =EXP(-(2*O$9*(N29/1440)*(-G$8))/(Data!B$13^2*LN('B&R'!$J$12))) -> 0.006604671835 | Q29: 85 | R29: =EXP(-(2*R$9*(Q29/1440)*(-G$8))/(Data!B$13^2*LN('B&R'!$J$12))) -> 0.002420034139 | T29: 141.6666667 | U29: =EXP(-(2*U$9*(T29/1440)*(-G$8))/(Data!B$13^2*LN('B&R'!J$12))) -> 0.006604671835 | W29: 226.6666667 | X29: =EXP(-(2*X$9*(W29/1440)*(-G$8))/(Data!B$13^2*LN('B&R'!$J$12))) -> 0.01802523747 | Z29: 226.6666667 | AA29: =EXP(-(2*AA$9*(Z29/1440)*(-G$8))/(Data!B$13^2*LN('B&R'!$J$12))) -> 0.2006099169 | AC29: 226.6666667 | AD29: =EXP(-(2*AD$9*(AC29/1440)*(-G$8))/(Data!B$13^2*LN('B&R'!$J$12))) -> 0.4478949842
K30: 6 | L30: =EXP(-(2*L$9*(K30/1440)*(-G$8)/(Data!B$13^2*LN('B&R'!$J$12)))) -> 0.1193006692 | N30: 30 | O30: =EXP(-(2*O$9*(N30/1440)*(-G$8))/(Data!B$13^2*LN('B&R'!$J$12))) -> 0.004915947083 | Q30: 90 | R30: =EXP(-(2*R$9*(Q30/1440)*(-G$8))/(Data!B$13^2*LN('B&R'!$J$12))) -> 0.00169796463 | T30: 150 | U30: =EXP(-(2*U$9*(T30/1440)*(-G$8))/(Data!B$13^2*LN('B&R'!J$12))) -> 0.004915947083 | W30: 240 | X30: =EXP(-(2*X$9*(W30/1440)*(-G$8))/(Data!B$13^2*LN('B&R'!$J$12))) -> 0.01423264967 | Z30: 240 | AA30: =EXP(-(2*AA$9*(Z30/1440)*(-G$8))/(Data!B$13^2*LN('B&R'!$J$12))) -> 0.1825216154 | AC30: 240 | AD30: =EXP(-(2*AD$9*(AC30/1440)*(-G$8))/(Data!B$13^2*LN('B&R'!$J$12))) -> 0.4272254854
K31: 6.333333333 | L31: =EXP(-(2*L$9*(K31/1440)*(-G$8)/(Data!B$13^2*LN('B&R'!$J$12)))) -> 0.1060096161 | N31: 31.66666667 | O31: =EXP(-(2*O$9*(N31/1440)*(-G$8))/(Data!B$13^2*LN('B&R'!$J$12))) -> 0.00365900628 | Q31: 95 | R31: =EXP(-(2*R$9*(Q31/1440)*(-G$8))/(Data!B$13^2*LN('B&R'!$J$12))) -> 0.00119134017 | T31: 158.3333333 | U31: =EXP(-(2*U$9*(T31/1440)*(-G$8))/(Data!B$13^2*LN('B&R'!J$12))) -> 0.00365900628 | W31: 253.3333333 | X31: =EXP(-(2*X$9*(W31/1440)*(-G$8))/(Data!B$13^2*LN('B&R'!$J$12))) -> 0.01123803871 | Z31: 253.3333333 | AA31: =EXP(-(2*AA$9*(Z31/1440)*(-G$8))/(Data!B$13^2*LN('B&R'!$J$12))) -> 0.1660642734 | AC31: 253.3333333 | AD31: =EXP(-(2*AD$9*(AC31/1440)*(-G$8))/(Data!B$13^2*LN('B&R'!$J$12))) -> 0.4075098445
K32: 6.666666667 | L32: =EXP(-(2*L$9*(K32/1440)*(-G$8)/(Data!B$13^2*LN('B&R'!$J$12)))) -> 0.09419929319 | N32: 33.33333333 | O32: =EXP(-(2*O$9*(N32/1440)*(-G$8))/(Data!B$13^2*LN('B&R'!$J$12))) -> 0.002723448143 | Q32: 100 | R32: =EXP(-(2*R$9*(Q32/1440)*(-G$8))/(Data!B$13^2*LN('B&R'!$J$12))) -> 0.0008358780722 | T32: 166.6666667 | U32: =EXP(-(2*U$9*(T32/1440)*(-G$8))/(Data!B$13^2*LN('B&R'!J$12))) -> 0.002723448143 | W32: 266.6666667 | X32: =EXP(-(2*X$9*(W32/1440)*(-G$8))/(Data!B$13^2*LN('B&R'!$J$12))) -> 0.008873506837 | Z32: 266.6666667 | AA32: =EXP(-(2*AA$9*(Z32/1440)*(-G$8))/(Data!B$13^2*LN('B&R'!$J$12))) -> 0.1510908329 | AC32: 266.6666667 | AD32: =EXP(-(2*AD$9*(AC32/1440)*(-G$8))/(Data!B$13^2*LN('B&R'!$J$12))) -> 0.3887040428
K33: 7 | L33: =EXP(-(2*L$9*(K33/1440)*(-G$8)/(Data!B$13^2*LN('B&R'!$J$12)))) -> 0.0837047351 | N33: 35 | O33: =EXP(-(2*O$9*(N33/1440)*(-G$8))/(Data!B$13^2*LN('B&R'!$J$12))) -> 0.002027099497 | Q33: 105 | R33: =EXP(-(2*R$9*(Q33/1440)*(-G$8))/(Data!B$13^2*LN('B&R'!$J$12))) -> 0.0005864757766 | T33: 175 | U33: =EXP(-(2*U$9*(T33/1440)*(-G$8))/(Data!B$13^2*LN('B&R'!J$12))) -> 0.002027099497 | W33: 280 | X33: =EXP(-(2*X$9*(W33/1440)*(-G$8))/(Data!B$13^2*LN('B&R'!$J$12))) -> 0.007006482679 | Z33: 280 | AA33: =EXP(-(2*AA$9*(Z33/1440)*(-G$8))/(Data!B$13^2*LN('B&R'!$J$12))) -> 0.1374674957 | AC33: 280 | AD33: =EXP(-(2*AD$9*(AC33/1440)*(-G$8))/(Data!B$13^2*LN('B&R'!$J$12))) -> 0.370766093
K34: 7.333333333 | L34: =EXP(-(2*L$9*(K34/1440)*(-G$8)/(Data!B$13^2*LN('B&R'!$J$12)))) -> 0.07437935511 | N34: 36.66666667 | O34: =EXP(-(2*O$9*(N34/1440)*(-G$8))/(Data!B$13^2*LN('B&R'!$J$12))) -> 0.001508797728 | Q34: 110 | R34: =EXP(-(2*R$9*(Q34/1440)*(-G$8))/(Data!B$13^2*LN('B&R'!$J$12))) -> 0.0004114880483 | T34: 183.3333333 | U34: =EXP(-(2*U$9*(T34/1440)*(-G$8))/(Data!B$13^2*LN('B&R'!J$12))) -> 0.001508797728 | W34: 293.3333333 | X34: =EXP(-(2*X$9*(W34/1440)*(-G$8))/(Data!B$13^2*LN('B&R'!$J$12))) -> 0.005532288466 | Z34: 293.3333333 | AA34: =EXP(-(2*AA$9*(Z34/1440)*(-G$8))/(Data!B$13^2*LN('B&R'!$J$12))) -> 0.1250725277 | AC34: 293.3333333 | AD34: =EXP(-(2*AD$9*(AC34/1440)*(-G$8))/(Data!B$13^2*LN('B&R'!$J$12))) -> 0.3536559453
K35: 7.666666667 | L35: =EXP(-(2*L$9*(K35/1440)*(-G$8)/(Data!B$13^2*LN('B&R'!$J$12)))) -> 0.06609289736 | N35: 38.33333333 | O35: =EXP(-(2*O$9*(N35/1440)*(-G$8))/(Data!B$13^2*LN('B&R'!$J$12))) -> 0.001123018671 | Q35: 115 | R35: =EXP(-(2*R$9*(Q35/1440)*(-G$8))/(Data!B$13^2*LN('B&R'!$J$12))) -> 0.0002887116922 | T35: 191.6666667 | U35: =EXP(-(2*U$9*(T35/1440)*(-G$8))/(Data!B$13^2*LN('B&R'!J$12))) -> 0.001123018671 | W35: 306.6666667 | X35: =EXP(-(2*X$9*(W35/1440)*(-G$8))/(Data!B$13^2*LN('B&R'!$J$12))) -> 0.004368271082 | Z35: 306.6666667 | AA35: =EXP(-(2*AA$9*(Z35/1440)*(-G$8))/(Data!B$13^2*LN('B&R'!$J$12))) -> 0.113795171 | AC35: 306.6666667 | AD35: =EXP(-(2*AD$9*(AC35/1440)*(-G$8))/(Data!B$13^2*LN('B&R'!$J$12))) -> 0.3373353983
K36: 8 | L36: =EXP(-(2*L$9*(K36/1440)*(-G$8)/(Data!B$13^2*LN('B&R'!$J$12)))) -> 0.05872961759 | N36: 40 | O36: =EXP(-(2*O$9*(N36/1440)*(-G$8))/(Data!B$13^2*LN('B&R'!$J$12))) -> 0.0008358780722 | Q36: 120 | R36: =EXP(-(2*R$9*(Q36/1440)*(-G$8))/(Data!B$13^2*LN('B&R'!$J$12))) -> 0.0002025683166 | T36: 200 | U36: =EXP(-(2*U$9*(T36/1440)*(-G$8))/(Data!B$13^2*LN('B&R'!J$12))) -> 0.0008358780722 | W36: 320 | X36: =EXP(-(2*X$9*(W36/1440)*(-G$8))/(Data!B$13^2*LN('B&R'!$J$12))) -> 0.003449167982 | Z36: 320 | AA36: =EXP(-(2*AA$9*(Z36/1440)*(-G$8))/(Data!B$13^2*LN('B&R'!$J$12))) -> 0.1035346545 | AC36: 320 | AD36: =EXP(-(2*AD$9*(AC36/1440)*(-G$8))/(Data!B$13^2*LN('B&R'!$J$12))) -> 0.3217680134
K37: 8.333333333 | L37: =EXP(-(2*L$9*(K37/1440)*(-G$8)/(Data!B$13^2*LN('B&R'!$J$12)))) -> 0.05218666634 | N37: 41.66666667 | O37: =EXP(-(2*O$9*(N37/1440)*(-G$8))/(Data!B$13^2*LN('B&R'!$J$12))) -> 0.0006221554186 | Q37: 125 | R37: =EXP(-(2*R$9*(Q37/1440)*(-G$8))/(Data!B$13^2*LN('B&R'!$J$12))) -> 0.0001421276795 | T37: 208.3333333 | U37: =EXP(-(2*U$9*(T37/1440)*(-G$8))/(Data!B$13^2*LN('B&R'!J$12))) -> 0.0006221554186 | W37: 333.3333333 | X37: =EXP(-(2*X$9*(W37/1440)*(-G$8))/(Data!B$13^2*LN('B&R'!$J$12))) -> 0.002723448143 | Z37: 333.3333333 | AA37: =EXP(-(2*AA$9*(Z37/1440)*(-G$8))/(Data!B$13^2*LN('B&R'!$J$12))) -> 0.09419929319 | AC37: 333.3333333 | AD37: =EXP(-(2*AD$9*(AC37/1440)*(-G$8))/(Data!B$13^2*LN('B&R'!$J$12))) -> 0.3069190336
K38: 8.666666667 | L38: =EXP(-(2*L$9*(K38/1440)*(-G$8)/(Data!B$13^2*LN('B&R'!$J$12)))) -> 0.04637265242 | N38: 43.33333333 | O38: =EXP(-(2*O$9*(N38/1440)*(-G$8))/(Data!B$13^2*LN('B&R'!$J$12))) -> 0.0004630787406 | Q38: 130 | R38: =EXP(-(2*R$9*(Q38/1440)*(-G$8))/(Data!B$13^2*LN('B&R'!$J$12))) -> 9.972081337e-05 | T38: 216.6666667 | U38: =EXP(-(2*U$9*(T38/1440)*(-G$8))/(Data!B$13^2*LN('B&R'!J$12))) -> 0.0004630787406 | W38: 346.6666667 | X38: =EXP(-(2*X$9*(W38/1440)*(-G$8))/(Data!B$13^2*LN('B&R'!$J$12))) -> 0.002150422893 | Z38: 346.6666667 | AA38: =EXP(-(2*AA$9*(Z38/1440)*(-G$8))/(Data!B$13^2*LN('B&R'!$J$12))) -> 0.08570566912 | AC38: 346.6666667 | AD38: =EXP(-(2*AD$9*(AC38/1440)*(-G$8))/(Data!B$13^2*LN('B&R'!$J$12))) -> 0.2927553059
K39: 9 | L39: =EXP(-(2*L$9*(K39/1440)*(-G$8)/(Data!B$13^2*LN('B&R'!$J$12)))) -> 0.04120636637 | N39: 45 | O39: =EXP(-(2*O$9*(N39/1440)*(-G$8))/(Data!B$13^2*LN('B&R'!$J$12))) -> 0.0003446758053 | Q39: 135 | R39: =EXP(-(2*R$9*(Q39/1440)*(-G$8))/(Data!B$13^2*LN('B&R'!$J$12))) -> 6.996695261e-05 | T39: 225 | U39: =EXP(-(2*U$9*(T39/1440)*(-G$8))/(Data!B$13^2*LN('B&R'!J$12))) -> 0.0003446758053 | W39: 360 | X39: =EXP(-(2*X$9*(W39/1440)*(-G$8))/(Data!B$13^2*LN('B&R'!$J$12))) -> 0.00169796463 | Z39: 360 | AA39: =EXP(-(2*AA$9*(Z39/1440)*(-G$8))/(Data!B$13^2*LN('B&R'!$J$12))) -> 0.07797788573 | AC39: 360 | AD39: =EXP(-(2*AD$9*(AC39/1440)*(-G$8))/(Data!B$13^2*LN('B&R'!$J$12))) -> 0.2792452072
K40: 9.333333333 | L40: =EXP(-(2*L$9*(K40/1440)*(-G$8)/(Data!B$13^2*LN('B&R'!$J$12)))) -> 0.03661564609 | N40: 46.66666667 | O40: =EXP(-(2*O$9*(N40/1440)*(-G$8))/(Data!B$13^2*LN('B&R'!$J$12))) -> 0.0002565468901 | Q40: 140 | R40: =EXP(-(2*R$9*(Q40/1440)*(-G$8))/(Data!B$13^2*LN('B&R'!$J$12))) -> 4.909079953e-05 | T40: 233.3333333 | U40: =EXP(-(2*U$9*(T40/1440)*(-G$8))/(Data!B$13^2*LN('B&R'!J$12))) -> 0.0002565468901 | W40: 373.3333333 | X40: =EXP(-(2*X$9*(W40/1440)*(-G$8))/(Data!B$13^2*LN('B&R'!$J$12))) -> 0.001340705539 | Z40: 373.3333333 | AA40: =EXP(-(2*AA$9*(Z40/1440)*(-G$8))/(Data!B$13^2*LN('B&R'!$J$12))) -> 0.0709468898 | AC40: 373.3333333 | AD40: =EXP(-(2*AD$9*(AC40/1440)*(-G$8))/(Data!B$13^2*LN('B&R'!$J$12))) -> 0.2663585737
K41: 9.666666667 | L41: =EXP(-(2*L$9*(K41/1440)*(-G$8)/(Data!B$13^2*LN('B&R'!$J$12)))) -> 0.03253636894 | N41: 48.33333333 | O41: =EXP(-(2*O$9*(N41/1440)*(-G$8))/(Data!B$13^2*LN('B&R'!$J$12))) -> 0.0001909513398 | Q41: 145 | R41: =EXP(-(2*R$9*(Q41/1440)*(-G$8))/(Data!B$13^2*LN('B&R'!$J$12))) -> 3.444349808e-05 | T41: 241.6666667 | U41: =EXP(-(2*U$9*(T41/1440)*(-G$8))/(Data!B$13^2*LN('B&R'!J$12))) -> 0.0001909513398 | W41: 386.6666667 | X41: =EXP(-(2*X$9*(W41/1440)*(-G$8))/(Data!B$13^2*LN('B&R'!$J$12))) -> 0.001058615304 | Z41: 386.6666667 | AA41: =EXP(-(2*AA$9*(Z41/1440)*(-G$8))/(Data!B$13^2*LN('B&R'!$J$12))) -> 0.06454985443 | AC41: 386.6666667 | AD41: =EXP(-(2*AD$9*(AC41/1440)*(-G$8))/(Data!B$13^2*LN('B&R'!$J$12))) -> 0.2540666338
K42: =$D$7 -> 10 | L42: =EXP(-(2*L$9*(K42/1440)*(-G$8)/(Data!B$13^2*LN('B&R'!$J$12)))) -> 0.02891155603 | N42: =$D$8 -> 50 | O42: =EXP(-(2*O$9*(N42/1440)*(-G$8))/(Data!B$13^2*LN('B&R'!$J$12))) -> 0.0001421276795 | Q42: =$D$9 -> 150 | R42: =EXP(-(2*R$9*(Q42/1440)*(-G$8))/(Data!B$13^2*LN('B&R'!$J$12))) -> 2.416653572e-05 | T42: =$D$10 -> 250 | U42: =EXP(-(2*U$9*(T42/1440)*(-G$8))/(Data!B$13^2*LN('B&R'!J$12))) -> 0.0001421276795 | W42: =$D$11 -> 400 | X42: =EXP(-(2*X$9*(W42/1440)*(-G$8))/(Data!B$13^2*LN('B&R'!$J$12))) -> 0.0008358780722 | Z42: =$D$12 -> 400 | AA42: =EXP(-(2*AA$9*(Z42/1440)*(-G$8))/(Data!B$13^2*LN('B&R'!$J$12))) -> 0.05872961759 | AC42: =$D$13 -> 400 | AD42: =EXP(-(2*AD$9*(AC42/1440)*(-G$8))/(Data!B$13^2*LN('B&R'!$J$12))) -> 0.2423419435
A49: Field Data
A51: Record Data in Fields Below | G51: Calculate and Plot Fields Below
A52: Well ID | C52: Well Dia. (ft) | E52: Total Depth (ft)
A53: Notes | B53: Date | C53: Time | D53: Elapsed Time (min) | E53: Depth To Product (TOC) | F53: Depth to Water (TOC) | G53: Product Thickness (ft) | H53: Drawdown (s) DTP-DTP(initial) (ft) | I53: Normalized Drawdown (s/sinitial)
A54: Initial Measurement
A55: Stopped Bailing/Start Gauging | D55: 0
A56: Well Starts recovering

Sheet Confined (hidden)
A1: Confined LNAPL Model: | E1: Well Designation: | G1: =IF(Data!B1 > 0,Data!B1,"") -> MW16
E2: Date: | G2: =IF(Data!B2 > 0,Data!B2,"") -> 2021-11-09
A5: Depth to base of confining bed (ft bgs) [from boring log]: | B5: 24.27
A6: Constant LNAPL discharge to well (ft3/d): | B6: 3.53
L9: =Data!N25 -> 0.925 | M9: =B6 -> 3.53
L10: =B14 -> 1.633076923 | M10: =M9 -> 3.53
A11: Depth to top of screen (ft bgs): | B11: =Data!B10 -> 30.7 | L11: 0 | M11: 0
A12: Corrected water table elevation (ft bgs): | B12: =Data!I22 -> 35.4214
A13: Limiting effective LNAPL thickness in well, bnW (ft): | B13: =IF(B5>B11,(B5-B12)/Data!B9,(B11-B12)/Data!B9) -> -6.053076923
A14: Limiting effective LNAPL drawdown, snW (ft): | B14: =(1-Data!B9)*(Confined!B15-Confined!B13) -> 1.633076923
A15: Initial LNAPL thickness, bnR (ft): | B15: =Data!O22 -> 1.37
A16: Radius of influence ratio (from Bouwer and Rice), R/rw: | B16: ='B&R'!J12 -> 6.740515896
A19: LNAPL Transmissivity, Tn (ft2/d): | B19: =B6*LN(B16)/(2*PI()*(1-Data!B9)*(B15-B13)) -> 0.6564439138

Sheet Perched (hidden)
A1: Perched LNAPL Model: | E1: Well Designation: | G1: =IF(Data!B1 > 0,Data!B1,"") -> MW16
E2: Date: | G2: =IF(Data!B2 > 0,Data!B2,"") -> 2021-11-09
A5: Depth to top of perching layer, DZ12 (ft bgs): | B5: 22.63
A6: Constant LNAPL discharge to well (ft3/d): | B6: 3.53
L9: =Data!N25 -> 0.925 | M9: =B6 -> 3.53
L10: =B13 -> -12.49 | M10: =M9 -> 3.53
A11: Depth to top of screen (ft bgs): | B11: =Data!B10 -> 30.7 | L11: 0 | M11: 0
A12: Corrected water table elevation (ft bgs): | B12: =Data!I22 -> 35.4214
A13: Limiting effective LNAPL drawdown, snW (ft): | B13: =B5-B14 -> -12.49
A14: Initial depth to product (DTP0) (ft bgs): | B14: =Data!E22 -> 35.12
A15: Radius of influence ratio (from Bouwer and Rice), R/rw: | B15: ='B&R'!J12 -> 6.740515896
A18: LNAPL Transmissivity, Tn (ft2/d): | B18: =B6*LN(B15)/(2*PI()*B13) -> -0.08583053698

Sheet Flowchart
